Cogmind - Beta 12 X4 @@@ ROGUE MODE // 2022.12.05 @ 00:19:42 Player: Runia Result: Destroyed by X-87 Electro with Compact HERF Cannon Performance ------------- Evolutions (9) 4500 Regions Visited (37) 7400 Robots Destroyed (570) 2850 Value Destroyed (27423) 27423 Prototype IDs (90) 1800 Alien Tech Used (14) 2800 Bonus (23639) 23639 TOTAL SCORE: 70412 Bonus ------- High Alert Combat Kills 4128 Follower Combat Kills 897 Network Hubs Disabled 200 Destroyed Z-Imprinter 1000 Met Zhirov 300 Met Warlord at Base 500 MAIN.C Attacked Warlord 500 Warlord Defense Kills 1588 Met Warlord at Research 2000 Scanned by Researcher 500 Destroyed MAIN.C Guards 500 Met MAIN.C 5000 Destroyed MAIN.C Shell 5000 Met Warlord at Command 2000 Friendly Fire -474 Cogmind --------- Core Integrity 0/1850 Matter 340/425 Energy 99/100 System Corruption 33% Temperature Cool (0) Movement Core (50) Location -1/Command Parts ------- > --- POWER (4) -------- (None) > --- PROPULSION (6) --- (None) > --- UTILITY (12) ----- (None) > --- WEAPON (3) ------- (None) > --- INVENTORY (7) ---- Improved Potential Cannon Peak State ------------ > --- POWER ------------ Reinforced Antimatter Reactor Quantum Reactor Improved Quantum Reactor Improved Quantum Reactor > --- PROPULSION ------- Myomer Exoskeleton Myomer Exoskeleton > --- UTILITY ---------- Experimental Power Amplifier Experimental Cooling System High-capacity Storage Unit Long-range Terrain Scanner Surveybot 24 Chip Experimental Transmission Jammer SHELL Armor Experimental Force Field Microwarp Drive > --- WEAPON ----------- Hypervelocity Multirail Sigix Broadsword > --- INVENTORY -------- Improved Fusion Compressor Quantum Reactor Advanced Energy Well Zionite Biocell Advanced Matter Compressor Quantum Capacitor Experimental EM Disruption Field Experimental Force Field Transdimensional Reconstructor Transdimensional Reconstructor Spacefold Activator HERF Cannon Cooled Phase Cannon Improved Potential Cannon Core Cannon Vortex Catalyst Activator Core Stripper [Rating: 288] Favorites ----------- Power Improved Deuterium Engine Engine Improved Deuterium Engine Power Core Neutrino Core Reactor Improved Quantum Reactor Propulsion Carbon-fiber Leg Treads Light Treads Leg Carbon-fiber Leg Wheel Armored Huge Wheel Utility High-capacity Storage Unit Device Experimental Sensor Array Storage High-capacity Storage Unit Processor Experimental Targeting Computer Hackware Improved Hacking Suite Protection Hardened Medium Armor Plating Artifact Microwarp Drive Weapon Advanced Beam Cannon Energy Gun Beamcaster Energy Cannon Advanced Beam Cannon Ballistic Gun 8R-AWN's Boregun Launcher Guided Missile Launcher Special Weapon RU-N14's Throwing Claymores Impact Weapon Heavy Mace Slashing Weapon Sigix Broadsword Piercing Weapon Vortex Lance Special Melee Weapon Advanced Datajack Build | -11 -10 -10 -9 -9 -9 -8 -8 -7 -7 -7 -7 -7 -6 -6 -6 -6 -6 -6 -5 -5 -5 -5 -5 -5 -4 -4 -4 -4 -4 -3 -3 -3 -2 -2 -2 -1 -1 ------- Run | Scr Mat Min Mat Min Exi Min Mat Fac Low Low Zio Dee Pro Fac Ext Cet Arc Hub Fac Was Fac Upp Upp War Pro Fac Upp Upp Zhi Pro Res Qua Res Tes Sec Acc Com Slots Evolved 18 | . . . 2 . . . 2 2 . . . . . 2 . . . . 2 . . . . . . 2 . . . . 2 . 2 . . 2 . Power 3 | . . . . . . . . . . . . . . . . . . . . . . . . . . 1 . . . . . . 1 . . 1 . Propulsion 4 | . . . . . . . 1 . . . . . . 1 . . . . 1 . . . . . . . . . . . 1 . . . . . . Utility 10 | . . . 1 . . . 1 2 . . . . . 1 . . . . 1 . . . . . . 1 . . . . 1 . 1 . . 1 . Weapon 1 | . . . 1 . . . . . . . . . . . . . . . . . . . . . . . . . . . . . . . . . . Parts Attached 669 | 2 8 8 25 9 23 2 35 10 7 14 3 11 23 40 11 13 6 35 29 7 41 6 14 15 4 19 10 7 10 2 14 36 15 61 22 13 59 Power 35 | . 1 1 3 . 1 . 2 1 . . . . . 2 . 2 . . 1 1 2 . . . . 1 . . . . . 3 2 5 2 2 3 Engine 8 | . 1 . 3 . 1 . 2 1 . . . . . . . . . . . . . . . . . . . . . . . . . . . . . Core 5 | . . 1 . . . . . . . . . . . 1 . . . . . . 1 . . . . . . . . . . 1 . . . 1 . Reactor 22 | . . . . . . . . . . . . . . 1 . 2 . . 1 1 1 . . . . 1 . . . . . 2 2 5 2 1 3 Propulsion 88 | 2 . . 6 . 5 . 11 1 . . . . 2 8 1 4 . 7 9 1 7 . . 2 . 5 . . 3 . 1 2 2 3 . . 6 Treads 26 | 2 . . 6 . 4 . 5 . . . . . . . . 1 . . . . 3 . . . . . . . . . . . . . . . 5 Leg 54 | . . . . . . . 3 1 . . . . 2 8 1 3 . 7 7 1 2 . . 2 . 5 . . 3 . 1 2 2 3 . . 1 Wheel 8 | . . . . . 1 . 3 . . . . . . . . . . . 2 . 2 . . . . . . . . . . . . . . . . Hover . | . . . . . . . . . . . . . . . . . . . . . . . . . . . . . . . . . . . . . . Flight . | . . . . . . . . . . . . . . . . . . . . . . . . . . . . . . . . . . . . . . Utility 245 | . 2 1 4 2 9 . 8 5 4 8 2 6 7 19 5 3 1 11 11 2 20 2 6 6 . 5 . 3 3 2 2 10 6 33 9 5 23 Device 152 | . 1 1 1 1 2 . 4 2 3 7 2 3 3 9 2 . . 4 5 . 14 1 4 5 . 4 . 2 2 2 2 8 4 27 7 3 17 Storage 14 | . 1 . . . 2 . 1 . . . . 1 . 1 1 1 . . . . 1 . . . . . . . . . . . . 4 . 1 . Processor 15 | . . . . . 2 . . 1 . . . . . 3 . . . 3 1 . 2 . 1 1 . 1 . . . . . . . . . . . Hackware 8 | . . . . . . . . 1 . . . . . 1 . . . . 2 . . . . . . . . . . . . . . . . 1 3 Protection 50 | . . . 3 1 3 . 3 1 1 1 . 2 4 5 2 2 1 4 3 2 3 1 1 . . . . 1 1 . . 1 2 2 . . . Artifact 6 | . . . . . . . . . . . . . . . . . . . . . . . . . . . . . . . . 1 . . 2 . 3 Weapon 301 | . 5 6 12 7 8 2 14 3 3 6 1 5 14 11 5 4 5 17 8 3 12 4 8 7 4 8 10 4 4 . 11 21 5 20 11 6 27 Energy Gun 32 | . 1 . . 1 . 1 5 1 . . . . . 1 . . . . . . . . . . . 4 2 1 2 . 5 6 . 2 . . . Energy Cannon 66 | . 2 3 7 3 . . 2 1 . 2 . . 3 1 . 1 . . 1 . 3 . 2 1 . 1 . . . . . 2 3 8 4 3 13 Ballistic Gun 80 | . 1 . 1 . 7 1 3 . . . . . 7 4 3 1 4 8 4 2 3 3 3 . . . . 1 1 . 1 5 1 4 2 3 7 Ballistic Cannon . | . . . . . . . . . . . . . . . . . . . . . . . . . . . . . . . . . . . . . . Launcher 38 | . 1 3 4 3 1 . 4 1 1 1 1 1 2 . . . . . 1 . 2 1 3 . 1 1 3 . . . 1 . . . . . 2 Special Weapon 30 | . . . . . . . . . . . . 4 1 . 2 2 . 6 2 1 1 . . 1 1 2 1 . . . 2 4 . . . . . Impact Weapon 37 | . . . . . . . . . 2 3 . . 1 5 . . . 3 . . 3 . . 3 1 . 3 1 1 . 2 4 . 2 2 . 1 Slashing Weapon 12 | . . . . . . . . . . . . . . . . . . . . . . . . . . . . . . . . . 1 4 3 . 4 Piercing Weapon 5 | . . . . . . . . . . . . . . . . . . . . . . . . 2 1 . 1 1 . . . . . . . . . Special Melee Weapon 1 | . . . . . . . . . . . . . . . . . 1 . . . . . . . . . . . . . . . . . . . . Unidentified Prototypes 70 | . 1 . . . 3 . . . . . 2 2 . 3 . 3 . 1 . . 3 . . 6 1 2 . . 4 . . 6 5 18 8 . 2 Corrupted Parts 1 | . . . . . . . . . . . . . . . . . . . . . . . . . . . . . . . . . . . . . 1 System Corruption 6 | . . . . . . . . . . . . . . . . . . . . . . . . . . . . . . . . . . . . . 6 Parts Lost 73 | . . . . 2 10 . 3 . . . . . . . . 5 . 5 3 2 18 . 2 . . 1 . . . . . . . . . . 22 Power 9 | . . . . . 1 . . . . . . . . . . 1 . . . . 2 . . . . . . . . . . . . . . . 5 Propulsion 20 | . . . . . 3 . 2 . . . . . . . . 2 . 1 . . 5 . . . . . . . . . . . . . . . 7 Utility 31 | . . . . 2 4 . 1 . . . . . . . . 1 . 3 1 2 6 . 2 . . 1 . . . . . . . . . . 8 Weapon 13 | . . . . . 2 . . . . . . . . . . 1 . 1 2 . 5 . . . . . . . . . . . . . . . 2 Highest Loss Streak 16 | . . . . 2 9 . 3 . . . . . . . . 4 . 2 1 2 10 . 2 . . 1 . . . . . . . . . . 16 To Critical Strikes 7 | . . . . . 6 . . . . . . . . . . . . . . . . . . . . . . . . . . . . . . . 1 Average Slot Usage (%) 90 | . 90 100 99 100 99 100 97 100 100 100 92 98 99 99 99 93 100 99 96 70 65 91 90 89 94 86 89 89 75 89 90 93 89 70 64 67 66 Engine 3 | . 14 2 9 11 10 11 8 7 7 7 7 7 7 . . . . . . . . . . . . . . . . . . . . . . . . Core 1 | . . 11 1 . . . . . . . . . . 3 6 1 . . . . . 5 5 5 5 . . . . . . . . . . . . Reactor 3 | . . . . . . . . . . . . . . 1 . 4 6 6 5 4 4 . . . . 5 5 5 5 5 4 7 11 13 13 15 15 Treads 6 | . 28 28 21 22 17 22 19 . . . . . . . . 2 . . . . . 11 11 9 5 1 . . . . . . . . . . 5 Leg 14 | . . . . . . . . 23 23 23 23 23 23 26 26 18 26 26 24 5 6 11 11 13 23 24 26 26 26 26 28 28 26 9 8 8 5 Device 12 | . 11 14 11 11 3 . 5 8 14 14 15 14 13 11 6 6 6 8 7 2 10 15 16 17 17 12 15 15 12 10 14 17 17 22 18 19 14 Storage 6 | . 14 14 11 11 11 11 9 7 7 7 7 7 7 6 6 6 6 6 5 5 5 5 5 5 5 5 5 5 5 5 4 4 4 4 4 4 3 Processor 10 | . . . . . 7 11 9 15 15 15 15 15 15 13 13 13 13 12 15 13 11 17 17 11 11 15 15 15 15 15 14 14 9 5 4 4 4 Protection 7 | . . . 11 11 10 11 10 12 7 7 7 7 8 8 17 19 20 17 7 5 3 6 2 5 5 5 5 5 7 10 9 5 7 3 4 4 3 Energy Gun 1 | . 4 . . . 7 10 8 3 . . . . . . . . . . . . . . . . . 1 1 9 . 10 7 8 1 . . . . Energy Cannon 7 | . 13 27 32 18 2 . 8 17 17 17 1 . 3 13 9 10 2 . 1 5 4 5 . . . . . . . . . . 3 2 3 1 1 Ballistic Gun 5 | . 4 . . 11 18 22 10 . . . . . 10 4 5 5 13 19 14 9 3 1 16 7 . . . 4 . 5 4 1 . 1 . 2 2 Impact Weapon 2 | . . . . . . . . . 4 5 7 7 5 1 2 . . . . . 2 4 . 4 5 5 4 . 1 . . 1 . . . . . Naked Turns 1 | . . . . . . . . . . . . . . . . . . . . . . . . . . . . . . . . . . . . . 1 Heaviest Build 208 | 10 54 54 68 68 68 68 72 80 80 85 79 90 94 96 97 104 104 101 95 122 124 88 108 111 95 127 128 126 126 125 131 128 139 196 184 196 208 Greatest Support 200 | 40 40 40 40 40 40 40 60 48 48 48 48 48 48 67 72 80 71 71 100 56 66 48 48 98 98 125 125 125 140 140 168 168 176 200 200 200 200 Greatest Overweight (x) 31 | . 1 1 3 1 6 1 6 1 1 1 1 1 1 1 1 3 31 1 3 2 19 1 2 2 . 1 1 1 1 . . . . 1 . . 3 Average Overweight (x) . | . . 1 1 1 3 1 3 1 1 1 1 1 1 1 1 1 6 1 . 1 1 1 1 1 . . . . . . . . . . . . . Largest Inventory Capacity 22 | 8 20 20 20 20 20 20 20 20 20 20 20 20 20 20 20 20 20 20 20 20 20 20 20 20 20 20 20 20 20 20 20 20 20 20 22 22 22 Average Capacity 20 | 8 16 20 20 20 20 20 20 20 20 20 20 20 20 20 20 20 20 20 20 20 19 20 20 20 20 20 20 20 20 20 20 20 20 20 20 22 21 Most Carried 22 | 6 19 20 20 20 20 15 20 20 20 20 20 20 20 20 20 20 20 20 20 20 20 19 20 20 20 20 20 20 20 20 20 20 20 20 22 22 22 Average Carried 19 | 4 12 19 19 19 16 14 19 17 20 20 19 19 19 19 18 19 19 19 18 19 15 16 18 18 19 17 20 19 19 19 18 19 19 19 20 21 20 Final Capacity 22 | 8 20 20 20 20 20 20 20 20 20 20 20 20 20 20 20 20 20 20 20 20 20 20 20 20 20 20 20 20 20 20 20 20 20 20 22 22 7 Final Carried 22 | 2 19 19 20 20 14 15 18 20 20 20 20 20 20 20 19 20 20 19 19 20 15 19 17 20 18 20 20 19 20 20 20 20 20 20 22 22 2 Class Distribution -------------------- 39% | Mutant 13% | Scavenger-Tank 10% | Scavenger-Mutant 9% | Scavenger-Gunner 8% | Tank 7% | Generator-Mutant 3% | Scavenger-Skirmisher Dominant Class ---------------- Mutant | -10/Materials Mutant | -10/Mines Scavenger-Tank | -9/Materials Scavenger-Tank | -9/Mines Scavenger-Mutant | -9/Exiles Scavenger-Gunner | -8/Mines Scavenger-Gunner | -8/Materials Tank | -7/Factory Mutant | -7/Lower Caves Mutant | -7/Lower Caves Mutant | -7/Zion Mutant | -7/Deep Caves Scavenger-Mutant | -6/Proximity Caves Scavenger-Skirmisher | -6/Factory Mutant | -6/Extension Scavenger-Tank | -6/Cetus Scavenger-Mutant | -6/Archives Scavenger-Tank | -6/Hub_04(d) Scavenger-Gunner | -5/Factory Scavenger-Mutant | -5/Waste Mutant | -5/Factory Scavenger-Mutant | -5/Upper Caves Scavenger-Gunner | -5/Upper Caves Trapper-Mutant | -5/Warlord Mutant | -4/Proximity Caves Mutant | -4/Factory Mutant | -4/Upper Caves Tank | -4/Upper Caves Mutant | -4/Zhirov Skirmisher | -3/Proximity Caves Tank | -3/Research Mutant | -3/Quarantine Mutant | -2/Research Mutant | -2/Testing Mutant | -2/Section 7 Generator-Mutant | -1/Access Generator-Mutant | -1/Command Resources | -11 -10 -10 -9 -9 -9 -8 -8 -7 -7 -7 -7 -7 -6 -6 -6 -6 -6 -6 -5 -5 -5 -5 -5 -5 -4 -4 -4 -4 -4 -3 -3 -3 -2 -2 -2 -1 -1 ----------- Run | Scr Mat Min Mat Min Exi Min Mat Fac Low Low Zio Dee Pro Fac Ext Cet Arc Hub Fac Was Fac Upp Upp War Pro Fac Upp Upp Zhi Pro Res Qua Res Tes Sec Acc Com Matter Collected 13670 | 220 252 125 343 282 327 275 825 82 136 221 59 172 557 510 352 369 236 1072 552 184 712 177 232 . 94 219 177 167 87 65 252 333 278 1344 520 530 1332 Remotely . | . . . . . . . . . . . . . . . . . . . . . . . . . . . . . . . . . . . . . . Salvage Created 25429 | . 309 115 1115 658 128 193 1736 216 196 250 . 66 557 972 611 832 384 2484 1045 343 1650 164 294 124 102 712 461 119 122 102 604 808 587 2542 481 1184 3163 Parts 1099 | . 19 7 68 43 5 14 101 4 2 8 . 2 17 45 26 39 19 118 49 9 65 7 15 3 7 30 37 1 1 1 26 21 23 102 14 37 114 Haulers Intercepted 21 | . 2 . 1 . . . 5 . . . . . 1 1 . . . 5 1 . 1 . . . . 2 . . . . . . . 1 . 1 . Recyclers Shooed 11 | . 1 . . . . . . . . . . . . 4 1 . . . 1 . 1 . . . . 1 . . . . . 2 . . . . . Parts Field Recycled 13 | . . . . . . . . . . . . . . . . . . . . . . . 13 . . . . . . . . . . . . . . Retrieved Matter 211 | . . . . . . . . . . . . . . . . . . . . . . . 211 . . . . . . . . . . . . . . Parts Self-Destructed 93 | . . . . . . . . . 2 10 . . 14 . . . . . . . . 6 12 . 7 . 31 10 . 1 . . . . . . . Prevented 10 | . . . . . . . . . . 2 . . 1 . . . . . . . . . . . . . . 6 1 . . . . . . . . Kills | -11 -10 -10 -9 -9 -9 -8 -8 -7 -7 -7 -7 -7 -6 -6 -6 -6 -6 -6 -5 -5 -5 -5 -5 -5 -4 -4 -4 -4 -4 -3 -3 -3 -2 -2 -2 -1 -1 ------- Run | Scr Mat Min Mat Min Exi Min Mat Fac Low Low Zio Dee Pro Fac Ext Cet Arc Hub Fac Was Fac Upp Upp War Pro Fac Upp Upp Zhi Pro Res Qua Res Tes Sec Acc Com Combat Hostiles Destroyed 431 | . 7 7 23 17 5 . 25 3 4 6 . 9 12 10 7 15 4 33 22 1 27 6 5 12 10 14 21 2 . 1 14 20 7 28 5 12 37 Melee 9 | . . . . . . . . . . . . . . . . . . . . . 3 . . . . 1 4 . . . . . . 1 . . . Guns 151 | . 2 . . . 1 . 12 . . . . . 3 5 1 7 4 24 9 1 3 . 1 . . . 1 1 . . 4 5 . 20 3 12 32 Cannons 90 | . 2 2 17 10 . . 5 2 . 2 . . 2 5 4 3 . 1 2 . 10 2 1 1 3 3 . . . . . 2 6 5 . . . AOE 166 | . 3 5 6 6 4 . 7 . 4 4 . 9 7 . 2 5 . 8 11 . 10 4 3 11 7 10 16 . . . 10 13 . . . . 1 Classes Destroyed 30 | . 4 . 4 5 . . 2 1 . . . 1 2 . . 1 1 1 . 1 1 . . 2 . 1 . . . . . . 1 2 . . . Worker 34 | . . . 1 4 . 2 1 1 . . . . . 4 1 . . 4 . . 1 . . . . 6 . . . . . . . . . 1 8 Builder 24 | . . . . 1 . . 4 . . . . . . . . . . 9 1 . 1 . . . . 2 . . . . . 2 . 4 . . . Tunneler 9 | . . . . 3 . 1 1 . . . . . . . . . . 2 1 . . . . . . . . . . . 1 . . . . . . Hauler 21 | . 2 . 1 . . . 5 . . . . . 1 1 . . . 5 1 . 1 . . . . 2 . . . . . . . 1 . 1 . Recycler 19 | . . . 2 2 . 2 1 . . . . . . 1 1 . . 2 1 . 3 . . . . 1 . . . . . 2 . . . 1 . Carrier 1 | . . . . . . . . . . . . . . . . 1 . . . . . . . . . . . . . . . . . . . . . Minesweeper 4 | . . . . . . . . . . . . . 1 . . . . . . . . . 3 . . . . . . . . . . . . . . Mechanic 3 | . . . . . . . 1 . . . . . . . . . . 1 . . 1 . . . . . . . . . . . . . . . . Operator 8 | . . . . . . . . . . . . . . . . . 2 1 1 . . . . . . . . . . . . . 1 . 1 1 1 Watcher 21 | . 1 . 3 . . . 3 . . . . . . 3 . 1 . 3 . . 1 . . . . 1 . . . . 1 2 . . . . 2 Swarmer 91 | . 3 3 6 6 . . . . . . . . . . . 7 . 3 9 . . 5 . 2 5 4 14 . . . 3 . . 4 . 2 15 Saboteur 3 | . . . . . . . . . . . . . . . . . . . . . . . . . . 1 . . . . . 1 . 1 . . . Grunt 158 | . 4 4 9 4 . . 17 . 3 5 . . 9 5 1 3 . 15 8 . 16 . 3 3 . 6 3 . . . 8 11 2 5 . 8 6 Brawler 9 | . . . . 1 . . 1 . 1 . . . . . 1 . . . . . . . . . . . . . . . . . 1 2 . 1 1 Duelist 8 | . . . 1 2 . . . . . . . . 1 . . . . . . . . . 1 . . 1 1 . . . . 1 . . . . . Protector 2 | . . . . . . . . . . . . . . . . . . . . . . . . 1 . 1 . . . . . . . . . . . Researcher 1 | . . . . . . . . . . . . . . . . . . . . . . . . . . . . . . . . . . 1 . . . Sentry 46 | . . . 7 . . . 5 2 . . . . . 1 4 . 4 5 2 . 2 1 . . 1 . 1 . . 1 3 . . . 3 . 4 Demolisher 5 | . . . . 2 . . . . . . . . . . . . . . . . 2 . . . . . . . . . . . 1 . . . . Specialist 6 | . . . . . . . . . . . . . . . . . . 2 . . 1 . . . . . . . . . . . . 3 . . . Hunter 34 | . . . . . . . 2 . . 1 . . . . . 1 . 6 2 . 1 . 1 4 4 . . 1 . . . 2 . 5 . . 4 Programmer 31 | . . . . . . . . 1 . . . . 1 4 . . . 2 1 . 4 . . . . 2 2 1 . . . 5 . 5 . 1 2 Heavy 1 | . . . . . . . . . . . . . . . . . . . . . 1 . . . . . . . . . . . . . . . . Behemoth 2 | . . . . . . . . . . . . . 1 . 1 . . . . . . . . . . . . . . . . . . . . . . Compactor 1 | . . . . . . . . . . . . . . . . . . . . 1 . . . . . . . . . . . . . . . . . Cetus Guard 4 | . . . . . . . . . . . . . . . . 4 . . . . . . . . . . . . . . . . . . . . . S7 Guard 2 | . . . . . . . . . . . . . . . . . . . . . . . . . . . . . . . . . . . 2 . . M Guard 2 | . . . . . . . . . . . . . . . . . . . . . . . . . . . . . . . . . . . . . 2 Combat Programmer 2 | . . . . . . . . . . . . . . . . . . . . . . . . . . . . . . . . . . . . . 2 Striker 2 | . . . . . . . . . . . . . . . . . . . . . . . . . . . . . . . . . 2 . . . . Executioner 3 | . . . . . . . . . . . . . . . . . . . . . . . . 2 . . . . . . . . 1 . . . . Superbehemoth 1 | . . . . . . . . . . . . . . . . . . . . . . . . . . . . . . . . . . 1 . . . Fortress 1 | . . . . . . . . . . . . . . . . . . . . . . . . . . . . . . . . . . 1 . . . Protovariant X 1 | . . . . . . . . . . . . . . . . . . . . . . . . . . . . . . . . . . 1 . . . Z-Light 6 | . . . . . . . . . . . . 6 . . . . . . . . . . . . . . . . . . . . . . . . . Packrat 1 | . . . . . . . . . 1 . . . . . . . . . . . . . . . . . . . . . . . . . . . . Assembled 9 | . . . . 2 4 . . . . . . 3 . . . . . . . . . . . . . . . . . . . . . . . . . Thug 1 | . . . . 1 . . . . . . . . . . . . . . . . . . . . . . . . . . . . . . . . . Savage 1 | . . . . . . . . . . . . . . . . 1 . . . . . . . . . . . . . . . . . . . . . Best Kill Streak 15 | . 3 3 4 5 4 2 5 2 4 4 . 4 4 4 2 8 3 15 8 1 6 5 4 12 5 12 5 1 . 1 5 14 5 8 1 6 7 Combat Bots Only 12 | . 3 3 4 3 4 . 3 2 4 4 . 4 4 3 1 7 2 6 6 1 6 5 4 12 5 6 5 1 . 1 4 9 5 7 1 5 6 Max Kills in Single Turn 9 | . 3 3 3 2 2 2 2 1 2 3 . 3 3 4 1 5 1 9 3 1 3 4 2 6 5 6 5 1 . 1 3 4 1 2 1 2 2 Gunslinging . | . . . . . . . . . . . . . . . . . . . . . . . . . . . . . . . . . . . . . . Exploded 6 | . 3 3 3 1 2 . 2 . 2 3 . 3 2 . 1 3 . 3 3 . 3 4 2 6 5 3 5 . . . 3 3 . . . . 1 Melee 1 | . . . . . . . . . . . . . . . . . . . . . 1 . . . . 1 1 . . . . . . 1 . . . Uniques/NPCs Destroyed 3 | . . . . . 1 . . . . . . 1 . . . . . . . . . . . . . . . . . . . . . . . . 1 8R-AWN (-9/Exiles) Z-Imprinter (-7/Deep Caves) MAIN.C Shell (-1/Command) Combat | -11 -10 -10 -9 -9 -9 -8 -8 -7 -7 -7 -7 -7 -6 -6 -6 -6 -6 -6 -5 -5 -5 -5 -5 -5 -4 -4 -4 -4 -4 -3 -3 -3 -2 -2 -2 -1 -1 -------- Run | Scr Mat Min Mat Min Exi Min Mat Fac Low Low Zio Dee Pro Fac Ext Cet Arc Hub Fac Was Fac Upp Upp War Pro Fac Upp Upp Zhi Pro Res Qua Res Tes Sec Acc Com Damage Taken 33616 | . 63 208 540 694 1030 . 1212 195 26 99 . 41 501 421 491 1341 489 1550 1061 638 4777 162 282 251 57 705 283 169 . 63 578 911 431 1416 1678 671 10582 Core 4490 | . 19 30 99 105 61 . 119 17 . . . . 56 36 16 149 20 83 60 77 727 46 20 55 . 17 20 . . . 45 81 40 105 645 44 1698 Absorbed by Shields 8249 | . . . . . . . 4 . 8 32 . 8 84 68 194 27 . . . . 112 . . 163 54 33 300 178 . 38 605 628 . 1282 1126 653 2652 Reduced by Siege Mode 63 | . . . . . . . . . . . . . . . . . . . . . 63 . . . . . . . . . . . . . . . . Redirected to Core 7 | . . . . . . . . . . . . . . . . . . . . . . . . . . . . . . . . . 7 . . . . Redirected to Shielding 246 | . . . . . . . . . . . . . . . . . . . . . 51 16 48 . . . . . . . 17 . 114 . . . . Regen/Repaired (Parts) 4634 | . . . . . . . 105 . . . . . . 177 . . . . . . . . . 56 . . . . . . . . 171 826 663 397 2239 Core Remaining (%) 68 | 100 . 80 . . . 33 78 . . . . . 89 . . . . 64 . . . . . . 1 . . . . 96 . 84 . . 55 . . Volleys Fired 1123 | . 20 12 41 41 32 4 93 13 3 5 . 10 33 34 33 25 20 74 40 12 72 9 28 5 9 11 18 5 . 4 24 42 29 100 44 42 136 Largest 3 | . 2 2 3 3 3 3 3 3 1 3 . 2 3 3 3 3 3 3 3 2 3 3 3 1 1 1 1 3 . 3 3 3 1 1 1 1 2 Hottest 300 | . 136 136 204 159 75 115 190 175 39 189 . 39 190 190 160 140 195 103 143 58 180 155 153 . . 88 81 197 . 197 210 300 40 300 300 50 300 Shots Fired 2127 | . 38 19 113 101 84 12 265 37 3 11 1 12 50 98 80 66 60 200 102 20 109 21 62 5 9 11 19 15 . 12 54 82 29 99 44 42 142 Gun 1242 | . 22 . . 30 79 12 208 12 . . . . 24 30 38 41 34 189 78 16 35 12 47 . . 1 12 15 . 12 45 65 . 54 7 33 91 Cannon 709 | . 15 14 108 60 . . 50 24 . 9 1 . 11 68 37 21 26 . 18 . 64 8 11 . . . . . . . . 3 29 45 37 9 41 Launcher 92 | . 1 5 5 11 5 . 7 1 3 2 . 6 11 . . . . . 2 . 8 1 4 . . 1 6 . . . 3 . . . . . 10 Special 84 | . . . . . . . . . . . . 6 4 . 5 4 . 11 4 4 2 . . 5 9 9 1 . . . 6 14 . . . . . Kinetic 1053 | . 11 . . 30 78 8 155 . . . . . 24 30 38 41 34 189 78 16 35 12 47 . . . . 5 . 3 15 19 . 54 7 33 91 Thermal 884 | . 20 14 108 60 1 4 103 36 . 8 1 . 11 68 37 21 26 . 18 . 64 8 11 . . 1 12 10 . 9 30 49 29 45 37 9 34 Explosive 165 | . 1 5 5 11 5 . 7 1 3 2 . 12 15 . 5 4 . 11 6 4 10 1 3 5 9 10 7 . . . 9 14 . . . . . Electromagnetic 15 | . 6 . . . . . . . . 1 . . . . . . . . . . . . 1 . . . . . . . . . . . . . 7 Entropic 10 | . . . . . . . . . . . . . . . . . . . . . . . . . . . . . . . . . . . . . 10 Robot Hit Streak 24 | . 11 3 11 6 23 6 21 24 7 16 . 19 17 23 22 10 21 15 14 13 13 9 7 8 11 7 6 9 . 5 16 19 7 13 13 14 14 Robot Miss Streak 7 | . 6 2 3 5 2 1 4 2 . . . 2 3 3 3 5 2 5 5 1 3 1 3 . 1 2 4 3 . 1 2 4 5 6 1 7 5 Penetration Max 2 | . . . . . . . . . . . . . . 2 1 1 1 1 . . 2 . . . . . . . . . . 1 . 1 1 2 2 Secondary Targets 3 | . . . . . . . 1 . . . . . . . . . . 1 1 . . . . . . . . . . . . . . . . . . Max Gunslinging Chain 1 | . . . . . . . 1 . . . . . . . . . . 1 1 . . . . . . . . . . . . . . . . . . Capacitor 122 | . . . . . . . . . . . . . . . . . . . . . . . . . . . . . . . . . 29 44 15 . 34 Shots Hit Robots 1440 | . 24 9 57 41 68 8 178 28 4 9 . 4 31 62 61 39 47 129 67 14 80 18 33 5 8 23 14 15 2 9 38 52 22 75 12 29 125 Core Hits 1013 | . 13 10 36 37 22 7 81 7 7 10 . 21 35 25 24 29 13 91 60 3 64 9 23 20 16 31 26 2 . 2 35 47 11 46 14 38 98 Critical Kills 119 | . . . . 1 . . . . . . . . 2 5 2 6 3 12 1 . 2 . 2 . . . . . . . . 2 1 25 3 15 37 Critical Parts Destroyed 155 | . . . . . 1 . . . . . . . 3 7 10 6 2 11 3 . 7 2 4 . . . . 2 . . . 5 . 34 2 17 39 Critical Strikes 332 | . . . . 1 2 . 3 . . . . . 8 13 15 17 6 27 8 2 10 2 6 2 4 3 1 3 1 1 3 9 1 63 6 32 83 Burn 6 | . . . . . . . 3 . . . . . . . . . . . . . . . . . . . . 1 . 1 1 . . . . . . Meltdown 3 | . . . . 1 . . . . . . . . . 1 . . . . . . . . . . . . . . . . . . 1 . . . . Destroy 292 | . . . . . 2 . . . . . . . 7 12 14 16 6 23 6 2 6 2 6 . . . . . . . . 7 . 63 6 32 82 Corrupt 1 | . . . . . . . . . . . . . . . . . . . . . . . . . . . . . . . . . . . . . 1 Smash 6 | . . . . . . . . . . . . . . . . . . . . . 3 . . . . . . 2 1 . . . . . . . . Sever 23 | . . . . . . . . . . . . . 1 . 1 1 . 4 2 . 1 . . 2 4 3 . . . . 2 2 . . . . . Sunder 1 | . . . . . . . . . . . . . . . . . . . . . . . . . . . 1 . . . . . . . . . . Melee Attacks 272 | . . . . . . . . . 18 7 14 1 14 11 2 . 2 3 . . 22 . . 12 10 32 18 5 2 . 5 14 4 24 6 8 38 Kinetic 21 | . . . . . . . . . . . . . . . . . . . . . . . . . . . . . . . . . . 7 3 . 11 Impact 166 | . . . . . . . . . 18 7 14 1 14 11 2 . . 3 . . 22 . . 11 7 20 7 5 2 . 5 14 3 . . . . Slashing 56 | . . . . . . . . . . . . . . . . . . . . . . . . . . . . . . . . . 1 17 3 8 27 Piercing . | . . . . . . . . . . . . . . . . . . . . . . . . . . . . . . . . . . . . . . Entropic 27 | . . . . . . . . . . . . . . . . . . . . . . . . 1 3 12 11 . . . . . . . . . . Sneak Attacks 19 | . . . . . . . . . 1 . . . 1 1 . . 2 . . . 3 . . . 1 5 . . . . . 1 1 1 . . 2 Combat Hostiles . | . . . . . . . . . . . . . . . . . . . . . . . . . . . . . . . . . . . . . . Follow-up Attacks 7 | . . . . . . . . . . . . . . . . . . . . . . . . . . 4 3 . . . . . . . . . . Damage Inflicted 72733 | . 513 566 1552 1458 1284 128 3405 709 570 585 . 2282 2887 1800 2459 1894 1229 7601 3015 267 4745 724 959 2852 2024 4113 2325 498 186 210 2754 6349 1202 2172 277 442 6697 Guns 16799 | . 129 . . 105 975 128 2016 188 . . . . 296 532 706 656 774 3369 1131 267 454 149 524 . . . 74 320 . 210 845 939 . 577 108 442 885 Cannons 14414 | . 251 184 1293 718 . . 759 511 . 168 . . 220 1083 801 355 455 . 234 . 1458 281 33 . . . . . . . . 1200 1019 1106 137 . 2148 Explosions 32954 | . 133 368 259 617 309 . 626 . 464 417 . 2111 2067 . 792 717 . 3876 1502 . 1985 294 402 2603 1605 2670 1542 . . . 1705 3456 . . . . 2434 Melee 5449 | . . . . . . . . . 106 . . 57 153 167 57 . . . . . 758 . . . 67 1056 666 178 186 . . 66 183 489 32 . 1228 Ramming 81 | . . 14 . 18 . . 4 10 . . . . . 18 . . . 10 . . 1 . . . . . . . . . . 4 . . . . 2 Kinetic 14897 | . 46 . . 105 975 65 1282 . . . . . 296 532 706 656 774 3369 1131 267 454 149 524 . . . . 87 . 47 311 335 . 842 140 442 1362 Thermal 18052 | . 263 184 1293 718 . 63 1493 699 . 136 . . 220 1083 801 355 455 . 234 . 1677 281 33 . . . 74 233 . 163 534 1804 1019 1106 137 . 2994 Explosive 29772 | . 133 368 259 617 309 . 626 . 464 417 . 2111 2067 . 792 717 . 3367 1502 . 1766 294 382 2603 1605 2670 1542 . . . 1705 3456 . . . . . Electromagnetic 841 | . 71 . . . . . . . . 32 . . . . . . . 509 . . . . 20 . . . . . . . . . . . . . 209 Impact 2637 | . . . . . . . . . 106 . . 57 153 167 57 . . . . . 758 . . . 67 613 169 178 186 . . 66 60 . . . . Slashing 4134 | . . . . . . . . . . . . 114 151 . 103 166 . 346 148 . 89 . . 249 352 387 43 . . . 204 684 123 224 . . 751 Piercing . | . . . . . . . . . . . . . . . . . . . . . . . . . . . . . . . . . . . . . . Entropic 2319 | . . . . . . . . . . . . . . . . . . . . . . . . . . 443 497 . . . . . . . . . 1379 Highest Corruption 32 | . . . . . . . . 1 1 1 1 . . 1 . . . 2 4 10 10 6 . . . 1 4 5 5 5 . 3 . 5 2 . 32 Average Corruption 4 | . . . . . . . . 1 1 1 1 . . 1 . . . 1 3 8 5 5 . . . 1 1 4 5 5 . 1 . 3 2 . 11 Corruption Purged 28 | . . . . . . . . . . . . . . 2 . . . . . . 10 6 . . . . . . . . . 2 . 8 . . . Corruption Blocked 18 | . . . . . . . . . . . . . . . . . . . . . . . . . . . . . . . . . 4 . . . 14 Effects 229 | . . . . . . . . 4 10 15 1 . . . . . . 2 . 7 17 20 . . . 3 5 32 6 8 . 8 . 4 3 . 84 Message Errors 47 | . . . . . . . . . 3 4 . . . . . . . . . . 3 6 . . . . . 7 . 2 . 1 . 2 . . 19 Matter Fused 63 | . . . . . . . . . 4 1 . . . . . . . 1 . 4 5 7 . . . 1 . 6 1 . . 2 . 1 3 . 27 Heat Flow Errors 26 | . . . . . . . . 2 . 1 . . . . . . . . . . 1 2 . . . 1 2 4 1 . . 3 . . . . 9 Energy Discharges 21 | . . . . . . . . . 1 2 . . . . . . . . . 2 2 . . . . 1 . 7 2 . . . . . . . 4 Parts Rejected 1 | . . . . . . . . . . . . . . . . . . . . . . . . . . . . . . . . . . . . . 1 Data Loss (minor) 40 | . . . . . . . . . 1 4 . . . . . . . 1 . . 5 5 . . . . 2 4 2 2 . 1 . . . . 13 Data Loss (major) 12 | . . . . . . . . 2 1 1 . . . . . . . . . 1 1 . . . . . . 3 . 2 . . . . . . 1 Misfires 9 | . . . . . . . . . . . 1 . . . . . . . . . . . . . . . 1 . . 1 . . . . . . 6 Alerts 5 | . . . . . . . . . . 2 . . . . . . . . . . . . . . . . . 1 . . . . . . . . 2 Misdirections 1 | . . . . . . . . . . . . . . . . . . . . . . . . . . . . . . . . . . . . . 1 Weapon Failures 4 | . . . . . . . . . . . . . . . . . . . . . . . . . . . . . . 1 . 1 . 1 . . 1 Overload Shots . | . . . . . . . . . . . . . . . . . . . . . . . . . . . . . . . . . . . . . . Overflow Damage 3058 | . 1 13 4 6 . . 20 . 98 . . 64 46 37 38 72 3 204 30 . 395 37 . 90 19 267 83 81 . . 11 785 45 193 . . 416 Projectiles 859 | . 1 . 4 6 . . 20 . . . . 18 . 4 30 2 3 11 2 . 20 . . . . . . . . . . 579 . 64 . . 95 Explosions 991 | . . 13 . . . . . . . . . 46 9 . 8 70 . 193 28 . 68 37 . 90 19 30 60 . . . 11 200 . . . . 109 Melee 1208 | . . . . . . . . . 98 . . . 37 33 . . . . . . 307 . . . . 237 23 81 . . . 6 45 129 . . 212 Knockbacks 9 | . . . . 1 . . . . 1 . . . . 1 . . . . . . 2 . . . 1 1 . 1 . . . . 1 . . . . Impact 9 | . . . . 1 . . . . 1 . . . . 1 . . . . . . 2 . . . 1 1 . 1 . . . . 1 . . . . Kinetic . | . . . . . . . . . . . . . . . . . . . . . . . . . . . . . . . . . . . . . . Secondary . | . . . . . . . . . . . . . . . . . . . . . . . . . . . . . . . . . . . . . . Self-Inflicted Damage 574 | . 11 . 24 45 41 . 36 . . . . . . . . . . 72 . . 201 . 28 . . . 71 . . . 45 . . . . . . Shots 15 | . 1 . 1 2 1 . 1 . . . . . . . . . . 1 . . 3 . 1 . . . 3 . . . 1 . . . . . . Rammed 5 | . . 3 . 1 . . 1 . . . . . . . . . . . . . . . . . . . . . . . . . . . . . . Targets Rammed 17 | . . 3 . 2 . . 1 1 . . . . . 4 . . . 2 . . 1 . . . . . . . . . . 1 . . . . 2 Kicked 11 | . . . . . . . . 1 . . . . . 4 . . . 2 . . 1 . . . . . . . . . . 1 . . . . 2 Crushed 1 | . . . . 1 . . . . . . . . . . . . . . . . . . . . . . . . . . . . . . . . . Highest Temperature 420 | . 90 297 420 285 53 57 344 194 27 194 19 19 246 193 54 72 289 8 374 27 322 192 180 . . 283 198 196 198 198 198 198 . 254 90 . 366 Average Temperature 83 | . 34 123 98 97 22 29 77 88 21 88 13 19 72 48 16 30 71 4 102 14 90 97 61 . . 82 93 100 105 104 97 99 . 106 40 . 105 Received Heat Transfer 4376 | . 24 120 162 36 . . 600 42 28 60 . 29 103 160 103 154 54 351 183 . 1096 18 54 28 . 118 29 . . . 100 118 18 78 72 101 337 Effects 2 | . . . 2 . . . . . . . . . . . . . . . . . . . . . . . . . . . . . . . . . . Interference 1 | . . . 1 . . . . . . . . . . . . . . . . . . . . . . . . . . . . . . . . . . Damage (minor) 1 | . . . 1 . . . . . . . . . . . . . . . . . . . . . . . . . . . . . . . . . . Siege Activations 1 | . . . . . . . . . . . . . . . . . . . . . 1 . . . . . . . . . . . . . . . . Total Turns 19 | . . . . . . . . . . . . . . . . . . . . . 19 . . . . . . . . . . . . . . . . Longest Duration 19 | . . . . . . . . . . . . . . . . . . . . . 19 . . . . . . . . . . . . . . . . Robots Corrupted 2 | . . . . . . . . . . . . . . . . . . . . . . . . . . . . . . . . . . . . . 2 Combat Hostiles 2 | . . . . . . . . . . . . . . . . . . . . . . . . . . . . . . . . . . . . . 2 Parts Fried 25 | . . . . . . . . . . 1 . . . 4 3 . . . . . 3 . . . . 9 . 1 1 . . . . . . . 3 Impact Corruptions 26 | . . . . . . . . . 2 . . . 1 2 . . . . . . 9 . . . . 5 . 2 2 . . 1 2 . . . . Robots Melted 6 | . . . . 1 . . 1 1 . . . . . 1 . . . . . . . . . . . . . . . 1 . . 1 . . . . Combat Hostiles 5 | . . . . 1 . . 1 1 . . . . . . . . . . . . . . . . . . . . . 1 . . 1 . . . . Parts Melted 60 | . 1 . 3 1 . . 9 5 . . . . . 7 10 . 5 . 1 . . 1 . . . . . 4 . 6 2 1 2 2 . . . Heat Transferred 20164 | . 469 333 2257 1258 . 111 2812 1110 . 222 . . 400 2000 1550 700 900 . 450 . 524 296 37 . . . 111 370 . 333 888 777 777 962 148 . 369 Parts Sabotaged 7 | . . . . . . . . . . . . . . . . . . . 4 . . . . . . . . . . . . . . 1 . . 2 Parts Stolen . | . . . . . . . . . . . . . . . . . . . . . . . . . . . . . . . . . . . . . . Parts Stripped . | . . . . . . . . . . . . . . . . . . . . . . . . . . . . . . . . . . . . . . Power Chain Reactions 4 | . . . . . . . . . . . . . . . . . . 2 . . 1 . . . . . . . . . . . . . . . 1 Missiles Intercepted . | . . . . . . . . . . . . . . . . . . . . . . . . . . . . . . . . . . . . . . Alert | -11 -10 -10 -9 -9 -9 -8 -8 -7 -7 -7 -7 -7 -6 -6 -6 -6 -6 -6 -5 -5 -5 -5 -5 -5 -4 -4 -4 -4 -4 -3 -3 -3 -2 -2 -2 -1 -1 ------- Run | Scr Mat Min Mat Min Exi Min Mat Fac Low Low Zio Dee Pro Fac Ext Cet Arc Hub Fac Was Fac Upp Upp War Pro Fac Upp Upp Zhi Pro Res Qua Res Tes Sec Acc Com Peak Influence 1369 | . 186 233 365 337 . 10 383 241 . . . . . 172 433 430 279 1068 1048 378 1070 . . . . 692 . . . . 693 852 303 815 884 748 1369 Initial 530 | . . . . 61 . . 1 173 . . . . . 15 18 179 92 27 522 363 258 . . . . 12 . . . . 13 389 247 163 423 530 311 Average 338 | . 60 44 161 157 . 5 151 128 . . . . . 51 202 275 213 354 653 364 692 . . . . 387 . . . . 383 558 233 444 613 590 907 Maximum Alert Level 4 | . . 1 1 1 . . 1 1 . . . . . . 2 2 1 3 3 1 3 . . . . 2 . . . . 2 3 1 3 3 3 4 Low Security (%) 42 | 100 100 87 51 67 . 100 70 84 . . . . . 100 51 22 36 17 . . . . . . . 24 . . . . 25 . 31 8 . . . Level 1 25 | . . 12 48 32 . . 29 15 . . . . . . 47 63 63 50 . 100 36 . . . . 18 . . . . 15 23 68 35 . 5 5 Level 2 17 | . . . . . . . . . . . . . . . . 14 . 24 74 . 4 . . . . 57 . . . . 59 49 . 38 78 79 24 Level 3 10 | . . . . . . . . . . . . . . . . . . 7 25 . 59 . . . . . . . . . . 26 . 16 21 14 27 Level 4 4 | . . . . . . . . . . . . . . . . . . . . . . . . . . . . . . . . . . . . . 42 Level 5 . | . . . . . . . . . . . . . . . . . . . . . . . . . . . . . . . . . . . . . . High Security . | . . . . . . . . . . . . . . . . . . . . . . . . . . . . . . . . . . . . . . Max Security . | . . . . . . . . . . . . . . . . . . . . . . . . . . . . . . . . . . . . . . Squads Dispatched 91 | . 2 . 3 1 . . 2 1 . . . . . 5 2 . . 11 4 . 10 . . . . 5 . . . . 2 5 . 12 7 3 16 Investigation 15 | . 1 . 1 . . . 1 . . . . . . 2 1 . . 1 1 . 2 . . . . 1 . . . . . 1 . . . 1 2 Extermination 20 | . . . . . . . . 1 . . . . . 3 . . . 1 . . 2 . . . . 1 . . . . . 1 . 2 2 2 5 Reinforcement 34 | . 1 . 2 . . . 1 . . . . . . . 1 . . 8 1 . 5 . . . . 1 . . . . . 2 . 5 3 . 4 Assault 18 | . . . . 1 . . . . . . . . . . . . . 1 2 . 1 . . . . 2 . . . . 1 1 . 2 2 . 5 Garrison 4 | . . . . . . . . . . . . . . . . . . . . . . . . . . . . . . . 1 . . 3 . . . Intercept . | . . . . . . . . . . . . . . . . . . . . . . . . . . . . . . . . . . . . . . Searches Triggered . | . . . . . . . . . . . . . . . . . . . . . . . . . . . . . . . . . . . . . . Construction Impeded 4 | . . . . . . . . . . . . . . . . . . 1 1 . 2 . . . . . . . . . . . . . . . . Haulers Reinforced 3 | . . . . . . . . . . . . . . . . . . 1 . . 1 . . . . . . . . . . . . 1 . . . Active Scanning Responses . | . . . . . . . . . . . . . . . . . . . . . . . . . . . . . . . . . . . . . . Cargo Convoy Interrupts . | . . . . . . . . . . . . . . . . . . . . . . . . . . . . . . . . . . . . . . Stealth | -11 -10 -10 -9 -9 -9 -8 -8 -7 -7 -7 -7 -7 -6 -6 -6 -6 -6 -6 -5 -5 -5 -5 -5 -5 -4 -4 -4 -4 -4 -3 -3 -3 -2 -2 -2 -1 -1 --------- Run | Scr Mat Min Mat Min Exi Min Mat Fac Low Low Zio Dee Pro Fac Ext Cet Arc Hub Fac Was Fac Upp Upp War Pro Fac Upp Upp Zhi Pro Res Qua Res Tes Sec Acc Com Distress Signals 39 | . 1 . 5 . . . 1 . . . . . . . 2 1 . 5 2 . 2 . . 2 . 1 . . . . . 1 4 . . . 12 Communications Jammed 76 | . . . . . . . . . . . . . . . . . . . . . . . . . . . . . . . . 19 . . 36 21 . Distress Signals 76 | . . . . . . . . . . . . . . . . . . . . . . . . . . . . . . . . 19 . . 36 21 . Times Spotted 794 | . 12 7 32 17 13 . 41 7 4 8 . 6 14 18 32 16 6 48 27 6 38 2 5 19 5 27 20 6 . 1 15 27 11 35 54 26 189 Peak Tracking Total 91 | . 3 3 4 3 10 . 3 2 4 4 . 5 5 2 5 5 1 6 6 5 7 1 4 19 4 6 5 3 . 1 4 9 6 6 9 6 91 Tactical Retreats 35 | . . . 2 . 3 . 3 . . 1 . . 4 . 1 . . 7 . 2 . . . . . 1 . 1 . . . . 1 2 2 . 5 Traps | -11 -10 -10 -9 -9 -9 -8 -8 -7 -7 -7 -7 -7 -6 -6 -6 -6 -6 -6 -5 -5 -5 -5 -5 -5 -4 -4 -4 -4 -4 -3 -3 -3 -2 -2 -2 -1 -1 ------- Run | Scr Mat Min Mat Min Exi Min Mat Fac Low Low Zio Dee Pro Fac Ext Cet Arc Hub Fac Was Fac Upp Upp War Pro Fac Upp Upp Zhi Pro Res Qua Res Tes Sec Acc Com Traps Triggered 14 | . . . 2 . . . . . . . . . . . 1 . . 1 1 . 1 . . . . . . . . . 2 . . . 2 1 3 Indirectly . | . . . . . . . . . . . . . . . . . . . . . . . . . . . . . . . . . . . . . . Trap Hack Attempts . | . . . . . . . . . . . . . . . . . . . . . . . . . . . . . . . . . . . . . . Triggered . | . . . . . . . . . . . . . . . . . . . . . . . . . . . . . . . . . . . . . . Disarmed . | . . . . . . . . . . . . . . . . . . . . . . . . . . . . . . . . . . . . . . Reprogrammed . | . . . . . . . . . . . . . . . . . . . . . . . . . . . . . . . . . . . . . . Reused . | . . . . . . . . . . . . . . . . . . . . . . . . . . . . . . . . . . . . . . Traps Extracted . | . . . . . . . . . . . . . . . . . . . . . . . . . . . . . . . . . . . . . . Installed . | . . . . . . . . . . . . . . . . . . . . . . . . . . . . . . . . . . . . . . Triggered 15 | . . . . . . . . . . 4 . . . . . . . . . . . . . 9 . . . 2 . . . . . . . . . Most Traps Carried 7 | . . . . . . . . . . . . . . . . . . . . . . . 7 7 6 6 6 6 6 6 . . . . . . . Exploded 3 | . . . . . 3 . . . . . . . . . . . . . . . . . . . . . . . . . . . . . . . . Machines | -11 -10 -10 -9 -9 -9 -8 -8 -7 -7 -7 -7 -7 -6 -6 -6 -6 -6 -6 -5 -5 -5 -5 -5 -5 -4 -4 -4 -4 -4 -3 -3 -3 -2 -2 -2 -1 -1 ---------- Run | Scr Mat Min Mat Min Exi Min Mat Fac Low Low Zio Dee Pro Fac Ext Cet Arc Hub Fac Was Fac Upp Upp War Pro Fac Upp Upp Zhi Pro Res Qua Res Tes Sec Acc Com Machines Disabled 99 | . . . 3 2 4 . 1 . . . . 2 . 6 4 2 3 23 2 . 15 . . 1 . 1 . . . . 2 9 . 8 8 1 2 Max in Single Turn 12 | . . . 2 1 2 . 1 . . . . 1 . 3 1 2 1 12 1 . 5 . . 1 . 1 . . . . 1 1 . 1 1 1 1 Garrison Access 9 | . . . . . . . . . . . . . . 1 . . . 1 1 . 1 . . . . 1 . . . . 2 . 2 . . . . Network Hub 1 | . . . . . . . . . . . . . . . . . . 1 . . . . . . . . . . . . . . . . . . . Energy Cycler 1 | . . . . . . . . . . . . . . . 1 . . . . . . . . . . . . . . . . . . . . . . Machines Sabotaged . | . . . . . . . . . . . . . . . . . . . . . . . . . . . . . . . . . . . . . . Overloaded Fab Kills . | . . . . . . . . . . . . . . . . . . . . . . . . . . . . . . . . . . . . . . Hacking | -11 -10 -10 -9 -9 -9 -8 -8 -7 -7 -7 -7 -7 -6 -6 -6 -6 -6 -6 -5 -5 -5 -5 -5 -5 -4 -4 -4 -4 -4 -3 -3 -3 -2 -2 -2 -1 -1 --------- Run | Scr Mat Min Mat Min Exi Min Mat Fac Low Low Zio Dee Pro Fac Ext Cet Arc Hub Fac Was Fac Upp Upp War Pro Fac Upp Upp Zhi Pro Res Qua Res Tes Sec Acc Com Machines Accessed 122 | . 5 . 8 1 . 1 7 2 1 1 . . . 11 9 . . 6 5 . 8 . 1 4 . 6 1 1 4 . 3 4 1 5 7 8 12 Terminals 82 | . 4 . 7 1 . 1 4 1 . . . . . 6 9 . . 5 1 . 5 . . . . 4 . . . . 1 4 . 4 6 7 12 Fabricators 7 | . . . . . . . . . . . . . . 1 . . . . 3 . 1 . . . . 1 . . . . . . . 1 . . . Repair Stations 3 | . . . . . . . 1 . . . . . . 2 . . . . . . . . . . . . . . . . . . . . . . . Recycling Units 1 | . 1 . . . . . . . . . . . . . . . . . . . . . . . . . . . . . . . . . . . . Scanalyzers 6 | . . . 1 . . . 2 . . . . . . 1 . . . . . . 1 . . . . . . . . . . . . . 1 . . Garrison Access 10 | . . . . . . . . 1 . . . . . 1 . . . 1 1 . 1 . . . . 1 . . . . 2 . 1 . . 1 . Total Hacks 322 | . 15 . 20 3 . 2 24 5 1 1 . . . 27 22 . . 16 13 . 29 . 1 5 . 14 1 10 16 . 7 13 1 16 9 13 38 Successful 158 | . 10 . 14 . . 1 15 1 1 1 . . . 9 11 . . 7 5 . 10 . 1 5 . 4 1 10 16 . 1 5 1 7 5 5 12 Failed 164 | . 5 . 6 3 . 1 9 4 . . . . . 18 11 . . 9 8 . 19 . . . . 10 . . . . 6 8 . 9 4 8 26 Catastrophic 36 | . 1 . 1 . . . 3 . . . . . . 2 1 . . 2 2 . 4 . . . . 3 . . . . 2 1 . 3 3 4 4 Database Lockouts . | . . . . . . . . . . . . . . . . . . . . . . . . . . . . . . . . . . . . . . Manual 63 | . 8 . 3 3 . . 5 . . . . . . 5 5 . . 4 4 . 2 . . . . . . . . . . 4 . 5 . . 15 Terminals 220 | . 14 . 18 3 . 2 10 3 . . . . . 15 22 . . 14 6 . 19 . . . . 10 . . . . 2 13 . 12 7 12 38 Fabricators 13 | . . . . . . . . . . . . . . 1 . . . . 4 . 2 . . . . 2 . . . . . . . 4 . . . Repair Stations 13 | . . . . . . . 4 . . . . . . 9 . . . . . . . . . . . . . . . . . . . . . . . Recycling Units 1 | . 1 . . . . . . . . . . . . . . . . . . . . . . . . . . . . . . . . . . . . Scanalyzers 19 | . . . 2 . . . 10 . . . . . . 1 . . . . . . 4 . . . . . . . . . . . . . 2 . . Garrison Access 21 | . . . . . . . . 2 . . . . . 1 . . . 2 3 . 4 . . . . 2 . . . . 5 . 1 . . 1 . Terminal Hacks 117 | . 9 . 12 . . 1 2 1 1 1 . . . 4 11 . . 6 2 . 6 . 1 5 . 4 1 10 16 . . 5 . 4 3 5 7 Record 20 | . . . . . . . . . . . . . . . . . . . . . . . . 3 . . . 10 5 . . . . . . . 2 Part Schematic 5 | . . . . . . . . . . . . . . . . . . . 2 . . . . . . . . . 3 . . . . . . . . Robot Schematic 1 | . 1 . . . . . . . . . . . . . . . . . . . . . . . . . . . . . . . . . . . . Robot Analysis 7 | . 2 . . . . . . . . . . . . . . . . . . . . . . . . . . . 4 . . 1 . . . . . Prototype ID Bank 14 | . 2 . 3 . . . . . . . . . . 1 1 . . . . . 2 . . . . . . . 4 . . . . 1 . . . Open Door 19 | . . . . . . . . . 1 1 . . . . 5 . . . . . . . 1 2 . . 1 . . . . . . 1 3 3 1 Level Access Points 1 | . . . . . . . . . . . . . . . . . . 1 . . . . . . . . . . . . . . . . . . . Branch Access Points 4 | . . . . . . . . 1 . . . . . 1 . . . . . . 1 . . . . 1 . . . . . . . . . . . Terminal Index 3 | . . . . . . . . . . . . . . . 1 . . . . . . . . . . 1 . . . . . . . . . . 1 Alert Level 10 | . 1 . 3 . . . 1 . . . . . . . 1 . . 1 . . . . . . . . . . . . . 1 . 1 . . 1 Unreport Threat 11 | . . . 2 . . . . . . . . . . . 1 . . 3 . . . . . . . . . . . . . 3 . . . 2 . Locate Traps 7 | . 1 . 2 . . . 1 . . . . . . . 1 . . . . . . . . . . 1 . . . . . . . 1 . . . Maintenance Status 1 | . . . . . . . . . . . . . . . . . . . . . . . . . . . . . . . . . . . . . 1 Patrol Status 1 | . . . . . . . . . . . . . . 1 . . . . . . . . . . . . . . . . . . . . . . . Transport Status 1 | . 1 . . . . . . . . . . . . . . . . . . . . . . . . . . . . . . . . . . . . Hauler Manifests 3 | . 1 . . . . . . . . . . . . . . . . . . . 1 . . . . 1 . . . . . . . . . . . Zone Layout 8 | . . . 2 . . 1 . . . . . . . 1 1 . . 1 . . 2 . . . . . . . . . . . . . . . . Disengage Seal 1 | . . . . . . . . . . . . . . . . . . . . . . . . . . . . . . . . . . . . . 1 Fabricator Hacks 6 | . . . . . . . . . . . . . . 1 . . . . 2 . 2 . . . . . . . . . . . . 1 . . . Network Status 1 | . . . . . . . . . . . . . . 1 . . . . . . . . . . . . . . . . . . . . . . . Load Schematic 2 | . . . . . . . . . . . . . . . . . . . 1 . 1 . . . . . . . . . . . . . . . . Build 3 | . . . . . . . . . . . . . . . . . . . 1 . 1 . . . . . . . . . . . . 1 . . . Repair Station Hacks 7 | . . . . . . . 4 . . . . . . 3 . . . . . . . . . . . . . . . . . . . . . . . Scan Component 4 | . . . . . . . 2 . . . . . . 2 . . . . . . . . . . . . . . . . . . . . . . . Repair 3 | . . . . . . . 2 . . . . . . 1 . . . . . . . . . . . . . . . . . . . . . . . Recycling Unit Hacks . | . . . . . . . . . . . . . . . . . . . . . . . . . . . . . . . . . . . . . . Scanalyzer 14 | . . . 2 . . . 9 . . . . . . . . . . . . . 1 . . . . . . . . . . . . . 2 . . Insert Component 8 | . . . 1 . . . 4 . . . . . . . . . . . . . 1 . . . . . . . . . . . . . 2 . . Analyze 6 | . . . 1 . . . 5 . . . . . . . . . . . . . . . . . . . . . . . . . . . . . . Garrison Access Hacks 4 | . . . . . . . . . . . . . . 1 . . . . 1 . . . . . . . . . . . 1 . 1 . . . . Seal Access 4 | . . . . . . . . . . . . . . 1 . . . . 1 . . . . . . . . . . . 1 . 1 . . . . Unauthorized Hacks 10 | . 1 . . . . . . . . . . . . . . . . 1 . . 1 . . . . . . . . . . . . 2 . . 5 Terminals 7 | . . . . . . . . . . . . . . . . . . 1 . . 1 . . . . . . . . . . . . . . . 5 Botnet 6 | . . . . . . . . . . . . . . . . . . 1 . . 1 . . . . . . . . . . . . . . . 4 Operators 1 | . . . . . . . . . . . . . . . . . . . . . . . . . . . . . . . . . . . . . 1 Fabricators 2 | . . . . . . . . . . . . . . . . . . . . . . . . . . . . . . . . . . 2 . . . Prioritize 1 | . . . . . . . . . . . . . . . . . . . . . . . . . . . . . . . . . . 1 . . . Haulers 1 | . . . . . . . . . . . . . . . . . . . . . . . . . . . . . . . . . . 1 . . . Repair Stations . | . . . . . . . . . . . . . . . . . . . . . . . . . . . . . . . . . . . . . . Recycling Units 1 | . 1 . . . . . . . . . . . . . . . . . . . . . . . . . . . . . . . . . . . . Tunnel 1 | . 1 . . . . . . . . . . . . . . . . . . . . . . . . . . . . . . . . . . . . Scanalyzers . | . . . . . . . . . . . . . . . . . . . . . . . . . . . . . . . . . . . . . . Garrison Access . | . . . . . . . . . . . . . . . . . . . . . . . . . . . . . . . . . . . . . . Data Cores Recovered 1 | . . . . . . . . . . . . . . . . . . . . . . . . . . . . . . . . . . . . 1 . Used . | . . . . . . . . . . . . . . . . . . . . . . . . . . . . . . . . . . . . . . Hacking Detections 86 | . 3 . 6 1 . 1 6 2 . . . . . 10 7 . . 6 4 . 8 . . . . 4 . . . . 2 3 . 3 3 6 11 Full Trace Events 13 | . 1 . 1 . . . 1 . . . . . . 2 1 . . 1 1 . 1 . . . . 1 . . . . . 1 . . . 1 1 Feedback Events 1 | . . . . . . . . . . . . . . 1 . . . . . . . . . . . . . . . . . . . . . . . Corruption 1 | . . . . . . . . . . . . . . 1 . . . . . . . . . . . . . . . . . . . . . . . Feedback Blocked . | . . . . . . . . . . . . . . . . . . . . . . . . . . . . . . . . . . . . . . Robot Schematics Acquired 5 | . 1 . . . . . . . . . . . . . . . . . . . . . . . . . . . . . . . . 4 . . . Robots Built 2 | . . . . . . . . . . . . . . . . . . . 1 . . . . . . . . . . . . . . 1 . . . Authchips . | . . . . . . . . . . . . . . . . . . . . . . . . . . . . . . . . . . . . . . Time 162 | . . . . . . . . . . . . . . . . . . . 81 . . . . . . . . . . . . . . 81 . . . Total Robot Build Rating 2 | . . . . . . . . . . . . . . . . . . . 1 . . . . . . . . . . . . . . 1 . . . Part Schematics Acquired 14 | . . . 1 . . . 4 . . . . . . . . . . . 2 . . . . . . . . . 3 . . . . 4 . . . Parts Built 1 | . . . . . . . . . . . . . . . . . . . . . 1 . . . . . . . . . . . . . . . . Authchips . | . . . . . . . . . . . . . . . . . . . . . . . . . . . . . . . . . . . . . . Time 204 | . . . . . . . . . . . . . . . . . . . . . 204 . . . . . . . . . . . . . . . . Total Part Build Rating 8 | . . . . . . . . . . . . . . . . . . . . . 8 . . . . . . . . . . . . . . . . Parts Repaired 3 | . . . . . . . 2 . . . . . . 1 . . . . . . . . . . . . . . . . . . . . . . . Time 163 | . . . . . . . 144 . . . . . . 19 . . . . . . . . . . . . . . . . . . . . . . . Parts Recycled . | . . . . . . . . . . . . . . . . . . . . . . . . . . . . . . . . . . . . . . Recycled Matter . | . . . . . . . . . . . . . . . . . . . . . . . . . . . . . . . . . . . . . . Retrieved Matter . | . . . . . . . . . . . . . . . . . . . . . . . . . . . . . . . . . . . . . . Retrieved Components . | . . . . . . . . . . . . . . . . . . . . . . . . . . . . . . . . . . . . . . Parts Scanalyzed 6 | . . . 1 . . . 4 . . . . . . . . . . . . . 1 . . . . . . . . . . . . . . . . Part Schematics Acquired 5 | . . . 1 . . . 4 . . . . . . . . . . . . . . . . . . . . . . . . . . . . . . Parts Damaged 1 | . . . . . . . 1 . . . . . . . . . . . . . . . . . . . . . . . . . . . . . . Bothacking | -11 -10 -10 -9 -9 -9 -8 -8 -7 -7 -7 -7 -7 -6 -6 -6 -6 -6 -6 -5 -5 -5 -5 -5 -5 -4 -4 -4 -4 -4 -3 -3 -3 -2 -2 -2 -1 -1 ------------ Run | Scr Mat Min Mat Min Exi Min Mat Fac Low Low Zio Dee Pro Fac Ext Cet Arc Hub Fac Was Fac Upp Upp War Pro Fac Upp Upp Zhi Pro Res Qua Res Tes Sec Acc Com Used RIF Installer . | . . . . . . . . . . . . . . . . . . . . . . . . . . . . . . . . . . . . . . Robots Hacked 2 | . . . . . . . . . . . . . . . . . 2 . . . . . . . . . . . . . . . . . . . . Non-combat 2 | . . . . . . . . . . . . . . . . . 2 . . . . . . . . . . . . . . . . . . . . Combat . | . . . . . . . . . . . . . . . . . . . . . . . . . . . . . . . . . . . . . . Robot Hacks Applied 2 | . . . . . . . . . . . . . . . . . 2 . . . . . . . . . . . . . . . . . . . . check_alert 2 | . . . . . . . . . . . . . . . . . 2 . . . . . . . . . . . . . . . . . . . . Relay Couplers Released 7 | . . . . . . . . . . . . . . . . . . 1 . . 1 . . . . 2 . . . . 2 . 1 . . . . Machine Destruction 7 | . . . . . . . . . . . . . . . . . . 1 . . 1 . . . . 2 . . . . 2 . 1 . . . . Fabnet Peak Effective % . | . . . . . . . . . . . . . . . . . . . . . . . . . . . . . . . . . . . . . . Robots Rewired 10 | . . . . . . . . 1 . . . . . . 7 . . . . . . . . 2 . . . . . . . . . . . . . Allies Hacked . | . . . . . . . . . . . . . . . . . . . . . . . . . . . . . . . . . . . . . . Hacks Repelled . | . . . . . . . . . . . . . . . . . . . . . . . . . . . . . . . . . . . . . . Allies | -11 -10 -10 -9 -9 -9 -8 -8 -7 -7 -7 -7 -7 -6 -6 -6 -6 -6 -6 -5 -5 -5 -5 -5 -5 -4 -4 -4 -4 -4 -3 -3 -3 -2 -2 -2 -1 -1 -------- Run | Scr Mat Min Mat Min Exi Min Mat Fac Low Low Zio Dee Pro Fac Ext Cet Arc Hub Fac Was Fac Upp Upp War Pro Fac Upp Upp Zhi Pro Res Qua Res Tes Sec Acc Com Total Allies 27 | . . 3 . 1 . . . 1 . . 3 . . . 14 . . . 1 1 . . . 2 . . . . . . . . . 1 . . . Largest Group 8 | . . 3 2 1 . . . 1 . . 3 3 1 . 8 7 . . 1 1 . . . 2 1 1 . . . . . . . 1 . . . Highest-Rated Group 367 | . . 40 32 31 . . . 16 . . 93 93 31 . 367 294 . . 14 31 . . . 111 65 65 . . . . . . . 6 . . . Highest-Rated Ally 159 | . . 16 16 31 . . . 16 . . 31 31 31 . 159 152 . . 14 31 . . . 65 65 65 . . . . . . . 6 . . . Total Orders . | . . . . . . . . . . . . . . . . . . . . . . . . . . . . . . . . . . . . . . Ally Attacks 241 | . . . 6 8 . . . 5 . . . 66 8 . 126 7 . . . 7 . . . 8 . . . . . . . . . . . . . Total Damage 4578 | . . . 32 127 . . . 66 . . . 629 108 . 3224 128 . . . 148 . . . 116 . . . . . . . . . . . . . Kills 33 | . . . . 1 . . . . . . . 7 1 . 23 . . . . . . . . 1 . . . . . . . . . . . . . Allies Corrupted . | . . . . . . . . . . . . . . . . . . . . . . . . . . . . . . . . . . . . . . Allies Melted . | . . . . . . . . . . . . . . . . . . . . . . . . . . . . . . . . . . . . . . Intel | -11 -10 -10 -9 -9 -9 -8 -8 -7 -7 -7 -7 -7 -6 -6 -6 -6 -6 -6 -5 -5 -5 -5 -5 -5 -4 -4 -4 -4 -4 -3 -3 -3 -2 -2 -2 -1 -1 ------- Run | Scr Mat Min Mat Min Exi Min Mat Fac Low Low Zio Dee Pro Fac Ext Cet Arc Hub Fac Was Fac Upp Upp War Pro Fac Upp Upp Zhi Pro Res Qua Res Tes Sec Acc Com Robot Analysis Total 7 | . 2 . . . . . . . . . . . . . . . . . . . . . . . . . . . 4 . . 1 . . . . . Derelict Logs Recovered 15 | . . 1 . 2 . . . . 2 3 . . 3 . . . . . . . . . . . 2 . . 2 . . . . . . . . . Drone Launches . | . . . . . . . . . . . . . . . . . . . . . . . . . . . . . . . . . . . . . . Drone Recoveries . | . . . . . . . . . . . . . . . . . . . . . . . . . . . . . . . . . . . . . . Exploration | -11 -10 -10 -9 -9 -9 -8 -8 -7 -7 -7 -7 -7 -6 -6 -6 -6 -6 -6 -5 -5 -5 -5 -5 -5 -4 -4 -4 -4 -4 -3 -3 -3 -2 -2 -2 -1 -1 ------------- Run | Scr Mat Min Mat Min Exi Min Mat Fac Low Low Zio Dee Pro Fac Ext Cet Arc Hub Fac Was Fac Upp Upp War Pro Fac Upp Upp Zhi Pro Res Qua Res Tes Sec Acc Com Turns Passed 43614 | 5 956 1308 1765 1470 1165 917 2134 940 1248 1661 1557 1447 2841 2148 1402 411 503 1210 621 271 1741 1290 1054 1430 1024 795 631 1321 200 366 393 830 738 1339 1135 791 2556 Spaces Moved 22653 | 1 401 522 642 543 494 376 835 451 577 820 790 697 1355 940 620 134 90 454 351 180 866 650 440 611 788 522 486 770 155 317 225 481 554 829 1138 661 1887 Core 25 | . . . . . . . . . . . . . . . . . 17 . . . 1 . . . . . . . . . . . . . . . 7 Treads 3281 | 1 401 522 642 543 211 376 289 . . . . . . . . 38 . . . . . . . . . . . . . . . . . . . . 258 Legs 17149 | . . . . . . . 3 451 577 820 790 697 1355 940 620 96 73 454 301 . 339 650 440 611 788 522 486 770 155 317 225 481 554 829 847 639 1319 Wheels 1582 | . . . . . 283 . 543 . . . . . . . . . . . 50 180 526 . . . . . . . . . . . . . . . . Hover . | . . . . . . . . . . . . . . . . . . . . . . . . . . . . . . . . . . . . . . Flight . | . . . . . . . . . . . . . . . . . . . . . . . . . . . . . . . . . . . . . . Fastest Speed 50 | 160 160 240 240 240 155 240 120 190 190 190 190 190 190 187 187 190 190 190 115 115 108 190 190 105 105 108 108 108 108 108 110 110 115 100 100 100 50 Average Speed 166 | 160 210 240 240 240 199 240 184 190 190 190 190 190 190 189 188 229 456 190 119 125 150 190 214 211 105 124 108 163 108 108 110 114 118 102 100 100 122 Slowest Speed 1600 | 160 240 240 400 240 240 240 400 190 190 190 190 190 190 190 190 330 1600 190 145 130 1000 190 260 260 105 182 182 182 182 108 110 120 120 180 100 100 237 Overloaded Moves . | . . . . . . . . . . . . . . . . . . . . . . . . . . . . . . . . . . . . . . Propulsion Burnouts . | . . . . . . . . . . . . . . . . . . . . . . . . . . . . . . . . . . . . . . Robots Hopped . | . . . . . . . . . . . . . . . . . . . . . . . . . . . . . . . . . . . . . . Cave-ins Triggered 3 | . . . . . . . . . . . . . . . . . . . . 2 1 . . . . . . . . . . . . . . . . Teleports 1 | . . . . . . . . . . . . . . . . . . . . . . . . . . . . . . . . . . . 1 . . Microwarps 60 | . . . . . . . . . . . . . . . . . . . . . . . . . . . . . . . . . . . 25 2 33 Exploration Rate (%) 58 | 1 70 98 66 98 58 96 67 13 60 85 80 62 94 31 82 49 80 52 9 91 26 75 47 81 82 17 75 78 60 53 12 65 14 65 74 20 47 Regions Visited 37 Branch Regions 25 Pre-discovered Areas 12 | . 1 . . . . . . . . . 3 . 1 . . . . . . . . . . . 1 . . 3 3 . . . . . . . . Known Exits Taken 26 | . . . . . . 1 1 1 1 1 1 1 1 1 1 1 1 1 . . 1 1 1 1 1 1 1 1 1 1 1 1 1 . . . . Unknown Exits Taken 9 | 1 1 1 1 1 1 . . . . . . . . . . . . . . . . . . . . . . . . . . . . 1 1 1 . Scrap Searched 29 | . . 1 . 2 . 1 . . . 3 4 . 3 . . . . . . . . 2 1 . 4 . 3 3 . 2 . . . . . . . Spaces Dug 670 | . 5 . 7 18 . . 15 8 12 5 3 13 7 9 . . . 181 31 64 9 19 7 7 6 5 94 1 . . 15 6 3 32 29 13 46 Terrain Destroyed 2114 | . 5 23 32 121 22 . 77 8 35 27 3 85 79 15 56 38 7 293 84 64 168 19 46 55 160 76 119 4 . . 62 158 9 50 30 15 69 Melee 106 | . . . . . . . . . 12 5 3 . 7 9 . . . 2 . . 4 . . 7 6 5 1 1 . . 1 6 2 8 2 8 17 Projectile 271 | . . . . 2 . . 7 . . . . 2 3 4 4 . 7 60 11 4 19 . 11 . 1 1 1 3 . . 3 13 7 33 27 5 43 AOE 1717 | . 5 23 32 119 22 . 70 8 23 22 . 83 68 . 52 37 . 231 73 60 145 19 35 48 153 70 117 . . . 58 139 . . . . 5 Terrain Rammed . | . . . . . . . . . . . . . . . . . . . . . . . . . . . . . . . . . . . . . . Walls Destroyed . | . . . . . . . . . . . . . . . . . . . . . . . . . . . . . . . . . . . . . . Machines Disabled . | . . . . . . . . . . . . . . . . . . . . . . . . . . . . . . . . . . . . . . Actions | -11 -10 -10 -9 -9 -9 -8 -8 -7 -7 -7 -7 -7 -6 -6 -6 -6 -6 -6 -5 -5 -5 -5 -5 -5 -4 -4 -4 -4 -4 -3 -3 -3 -2 -2 -2 -1 -1 --------- Run | Scr Mat Min Mat Min Exi Min Mat Fac Low Low Zio Dee Pro Fac Ext Cet Arc Hub Fac Was Fac Upp Upp War Pro Fac Upp Upp Zhi Pro Res Qua Res Tes Sec Acc Com Total 26812 | 6 478 552 788 628 609 382 1237 509 691 897 826 807 1548 1206 782 188 139 636 491 209 1156 686 497 727 964 616 553 812 184 332 316 662 632 1223 1093 731 2019 Wait 1850 | . 20 5 41 29 42 . 216 14 85 48 . 73 108 144 11 4 15 49 50 1 124 17 6 45 153 26 25 18 . 8 45 57 6 130 105 14 116 Move 22059 | . 400 521 641 542 493 375 834 450 576 819 789 696 1354 939 619 133 89 453 351 177 865 649 439 610 787 521 485 769 154 316 224 480 553 828 871 640 1617 Hop . | . . . . . . . . . . . . . . . . . . . . . . . . . . . . . . . . . . . . . . Pick Up 275 | . 22 1 16 3 10 1 28 9 1 1 9 8 4 11 2 5 3 4 9 2 20 5 2 11 . 6 1 1 4 1 2 9 7 19 13 7 18 Fast Attach 186 | . 3 1 6 1 1 . 9 2 . 2 1 . 3 11 1 6 1 3 5 3 17 . 2 5 2 4 1 6 10 . 2 9 10 31 16 2 10 Attach 153 | 2 1 . 2 2 9 . 6 3 . . . 5 4 3 2 3 2 5 8 2 15 1 2 3 2 4 . 1 1 . 3 6 4 16 8 2 26 Detach 35 | . . . . . . . . . . . . . 4 . . 1 . . . 3 . . 1 1 1 1 . . 1 . . 2 2 7 3 . 8 Swap 341 | . 4 7 17 6 13 2 20 5 7 12 2 6 16 26 8 4 3 27 16 2 9 5 10 7 . 11 9 . . 2 9 21 1 15 7 9 23 Drop 393 | 4 8 2 24 2 9 . 30 8 1 3 11 8 8 23 3 7 4 11 12 5 11 . 7 14 3 9 2 7 12 1 2 21 16 53 20 7 25 Fire 1123 | . 20 12 41 41 32 4 93 13 3 5 . 10 33 34 33 25 20 74 40 12 72 9 28 5 9 11 18 5 . 4 24 42 29 100 44 42 136 Melee 254 | . . . . . . . . . 18 7 14 1 14 11 2 . 2 3 . . 22 . . 12 7 23 12 5 2 . 5 14 4 24 6 8 38 Ram . | . . . . . . . . . . . . . . . . . . . . . . . . . . . . . . . . . . . . . . Kick 10 | . . . . . . . . 1 . . . . . 4 . . . 2 . . . . . . . . . . . . . 1 . . . . 2 Crush 6 | . . 3 . 2 . . 1 . . . . . . . . . . . . . . . . . . . . . . . . . . . . . . Escape Stasis 13 | . . . . . . . . . . . . . . . 5 . . 5 . 2 1 . . . . . . . . . . . . . . . . Rewire 114 | . . . . . . . . 4 . . . . . . 96 . . . . . . . . 14 . . . . . . . . . . . . . Trap . | . . . . . . . . . . . . . . . . . . . . . . . . . . . . . . . . . . . . . . Miscellaneous . | . . . . . . . . . . . . . . . . . . . . . . . . . . . . . . . . . . . . . . Route ------- -11/Scrapyard -10/Materials (discovered 3 exits: *Mat x2 / [*Min]) -10/Mines (discovered 2 exits: *Mat x2) -9/Materials (discovered 5 exits: *Mat x2 / *Min / [*Sto x2]) -9/Mines (discovered 3 exits: *Mat x2 / [*Exi]) -9/Exiles -8/Mines (discovered 2 exits: *Mat x2) -8/Materials (discovered 3 exits: *Fac x3) -7/Factory (discovered 2 exits: *Low x2) -7/Lower Caves -7/Lower Caves (discovered 2 exits: *Fac / *Zio) -7/Zion (discovered 2 exits: *Dee / [*Pro]) -7/Deep Caves -6/Proximity Caves -6/Factory (discovered 5 exits: Fac / Low x2 / *Ext x2) -6/Extension (discovered 2 exits: *Fac / *Cet) -6/Cetus -6/Archives (discovered 3 exits: *Fac / *Hub x2) -6/Hub_04(d) (discovered 4 exits: *Fac x4) -5/Factory -5/Waste -5/Factory (discovered 2 exits: *Upp x2) -5/Upper Caves -5/Upper Caves -5/Warlord -4/Proximity Caves -4/Factory (discovered 4 exits: Res x2 / *Upp x2) -4/Upper Caves -4/Upper Caves (discovered 2 exits: Res / *Zhi) -4/Zhirov -3/Proximity Caves -3/Research (discovered 2 exits: Arm / *Qua) -3/Quarantine -2/Research -2/Testing (discovered 2 exits: Acc / *Sec) -2/Section 7 -1/Access -1/Command (discovered 1 exit: [*Sur]) History --------- Turn | Location | Event 6 | -11/Scrapyard | Discovered new exit (range 0) 6 | -11/Scrapyard | Entered Materials 110 | -10/Materials | Discovered new exit (range 15) 332 | -10/Materials | Build established: Mutant 371 | -10/Materials | Discovered new exit (range 15) 847 | -10/Materials | Discovered new exit (range 9) 962 | -10/Materials | Entered Mines 1082 | -10/Mines | Found a damaged Exp. Sensor Array with a note attached 1087 | -10/Mines | Found Prototype Device 1141 | -10/Mines | Learned 2 Materials zone layouts 1318 | -10/Mines | Discovered new exit (range 8) 1572 | -10/Mines | Discovered new exit (range 5) 1591 | -10/Mines | Assisted by bots powering up and referring to "LRC-V3" 2270 | -10/Mines | Entered Materials 2270 | -9/Materials | Accompanied by 3 allies 2270 | -9/Materials | Evolved 2 slots: Utility x1, Weapon x1 2271 | -9/Materials | Identified exit to Materials 2272 | -9/Materials | Discovered new exit (range 7) 2282 | -9/Materials | Discovered new exit (range 16) 2731 | -9/Materials | Build established: Scavenger-Tank 2808 | -9/Materials | Identified Exp. Sensor Array 3372 | -9/Materials | Discovered exit to Materials (range 16) 3547 | -9/Materials | Build established: Tank 4011 | -9/Materials | Discovered new exit (range 10) 4035 | -9/Materials | Entered Mines 4135 | -9/Mines | Discovered exit to Materials (range 14) 4233 | -9/Mines | A weapon hastily lodged in a ceiling crevice suddenly fell to the ground 4264 | -9/Mines | Learned 2 Materials zone layouts 4265 | -9/Mines | Build established: Scavenger-Tank 4354 | -9/Mines | Assembled infested the area 4370 | -9/Mines | Received a Rocket Launcher from a helpful Derelict 4906 | -9/Mines | Core integrity fell below 50% 4980 | -9/Mines | Discovered exit to Materials (range 6) 5273 | -9/Mines | Met a Derelict testing a Signal Generator 5341 | -9/Mines | Build established: Scavenger-Mutant 5495 | -9/Mines | Deemed a non-threat by the Exiles lab entrance 5495 | -9/Mines | Discovered new exit (range 5) 5505 | -9/Mines | Entered Exiles 5570 | -9/Exiles | Met 8R-AWN 5604 | -9/Exiles | Met EX-HEX 5735 | -9/Exiles | Met EX-DEC 5751 | -9/Exiles | Build established: Scavenger-Tank 6081 | -9/Exiles | Build established: Scavenger-Mutant 6243 | -9/Exiles | Attacked by the Exiles 6419 | -9/Exiles | Destroyed 8R-AWN 6424 | -9/Exiles | Found Prototype Ballistic Gun 6430 | -9/Exiles | Found Prototype Ballistic Gun 6439 | -9/Exiles | Found Prototype Processor 6439 | -9/Exiles | Identified Exp. Targeting Computer 6443 | -9/Exiles | Lost 9 parts (1p3n3u2w) 6585 | -9/Exiles | Identified 8R-AWN's Boregun (x2) 6643 | -9/Exiles | Discovered new exit (range 14) 6670 | -9/Exiles | Entered Mines 6731 | -8/Mines | Build established: Scavenger-Gunner 6848 | -8/Mines | Discovered exit to Materials (range 5) 7105 | -8/Mines | Discovered exit to Materials (range 10) 7587 | -8/Mines | Entered Materials 7587 | -8/Materials | Evolved 2 slots: Propulsion x1, Utility x1 7588 | -8/Materials | Identified exit to Factory 8180 | -8/Materials | Repaired Broken Exp. Heat Sink 8213 | -8/Materials | Repaired Med. Armor Plating 8333 | -8/Materials | Lost 3 parts (2n1u) 8413 | -8/Materials | Discovered exit to Factory (range 8) 9596 | -8/Materials | Discovered exit to Factory (range 10) 9721 | -8/Materials | Entered Factory 9721 | -7/Factory | Evolved 2 slots: Utility x2 9860 | -7/Factory | Identified exit to Lower Caves 10470 | -7/Factory | Build established: Tank 10661 | -7/Factory | Entered Lower Caves 10977 | -7/Lower Caves | Build established: Skirmisher 11350 | -7/Lower Caves | Build established: Mutant 11632 | -7/Lower Caves | Learned Factory stockpile data 11736 | -7/Lower Caves | Identified exit to Lower Caves 11909 | -7/Lower Caves | Entered another Lower Caves area 11923 | -7/Lower Caves | Discovered new exit (range 11) 11947 | -7/Lower Caves | Identified exit to Factory 12649 | -7/Lower Caves | Identified exit to Zion 12676 | -7/Lower Caves | Build established: Tank 13086 | -7/Lower Caves | Build established: Mutant 13107 | -7/Lower Caves | Learned Factory terminal intel 13112 | -7/Lower Caves | Learned location of 1 exit from Factory 13570 | -7/Lower Caves | Entered Zion 13641 | -7/Zion | System corruption cleaned by Quarantine Array 13658 | -7/Zion | Learned location of Warlord (-5) 13748 | -7/Zion | Found Prototype Launcher 13748 | -7/Zion | Identified Gui. Missile Launcher 13844 | -7/Zion | Discovered new exit (range 16) 13893 | -7/Zion | Gained Derelict followers 14005 | -7/Zion | Found Prototype Special Weapon 14007 | -7/Zion | Found Prototype Special Weapon 14012 | -7/Zion | Found Prototype Special Weapon 14016 | -7/Zion | Found Prototype Special Weapon 14122 | -7/Zion | Found Prototype Device 14335 | -7/Zion | Received a hallucinogenic algorithm 14508 | -7/Zion | Learned Factory emergency access door positions 14918 | -7/Zion | Identified Mobile Refinery Mk. CCLXVII 15121 | -7/Zion | Discovered new exit (range 3) 15125 | -7/Zion | Identified exit to Deep Caves 15127 | -7/Zion | Entered Deep Caves 15127 | -7/Deep Caves | Accompanied by 3 allies 15163 | -7/Deep Caves | Found Surveybot 24 Scanner 15166 | -7/Deep Caves | Found Surveybot 24 Chip 15358 | -7/Deep Caves | Identified RU-N14's Throwing Claymores (x4) 15406 | -7/Deep Caves | Attacked by Z-Imprinter 15418 | -7/Deep Caves | Allies destroyed Z-Imprinter 15496 | -7/Deep Caves | Z-Facility disabled 15992 | -7/Deep Caves | Discovered new exit (range 6) 16002 | -7/Deep Caves | Identified exit to Proximity Caves 16574 | -7/Deep Caves | Entered Proximity Caves 16574 | -6/Proximity Caves | Accompanied by 1 ally 16873 | -6/Proximity Caves | Spotted B-75 Beast 17121 | -6/Proximity Caves | Destroyed B-75 Beast 17376 | -6/Proximity Caves | Build established: Scavenger-Mutant 18129 | -6/Proximity Caves | Learned Factory stockpile data 18153 | -6/Proximity Caves | Learned Factory terminal intel 18658 | -6/Proximity Caves | Found Imp. Powered Armor 18772 | -6/Proximity Caves | Build established: Mutant 19032 | -6/Proximity Caves | Discovered exit to Factory (range 6) 19169 | -6/Proximity Caves | Build established: Scavenger-Tank 19415 | -6/Proximity Caves | Entered Factory 19415 | -6/Factory | Evolved 2 slots: Propulsion x1, Utility x1 19416 | -6/Factory | Identified exit to Factory 19419 | -6/Factory | Loaded intel: 24 terminal locations 20155 | -6/Factory | Build established: Scavenger-Skirmisher 20345 | -6/Factory | Repaired Hrd. Medium Armor Plating 20863 | -6/Factory | Identified exit to Lower Caves 20863 | -6/Factory | Identified exit to Extension 20872 | -6/Factory | Found Exp. Targeting Computer 21531 | -6/Factory | Build established: Mutant 21563 | -6/Factory | Entered Extension 21623 | -6/Extension | Rescued a captive Derelict 21625 | -6/Extension | Rescued a captive Derelict 21753 | -6/Extension | Rescued A7 21775 | -6/Extension | Rescued a captive Derelict 21775 | -6/Extension | Rescued a captive Derelict 21975 | -6/Extension | Rescued a captive Derelict 22409 | -6/Extension | Spotted B-75 Beast 22417 | -6/Extension | Destroyed B-75 Beast 22420 | -6/Extension | Spotted B-75 Beast 22448 | -6/Extension | Allies destroyed B-75 Beast 22463 | -6/Extension | Disrupted transfer network 22525 | -6/Extension | Rescued a captive Derelict 22525 | -6/Extension | Rescued a captive Derelict 22834 | -6/Extension | Energy Cycler disabled 22944 | -6/Extension | Discovered exit to Factory (range 10) 22946 | -6/Extension | Discovered new exit (range 6) 22956 | -6/Extension | Identified exit to Cetus 22965 | -6/Extension | Entered Cetus 22965 | -6/Cetus | Accompanied by 7 allies (A7) 22970 | -6/Cetus | Acquired a Cetus Manufacturing Module code from A7 22981 | -6/Cetus | Build established: Scavenger-Tank 22990 | -6/Cetus | Spotted Cetus Guard 22990 | -6/Cetus | Spotted Cetus Guard 22995 | -6/Cetus | Spotted Cetus Guard 23000 | -6/Cetus | Spotted Cetus Guard 23007 | -6/Cetus | Extracted ID and sensor layout for unrecognized location from A7's data core 23022 | -6/Cetus | Destroyed Cetus Guard 23029 | -6/Cetus | Destroyed Cetus Guard 23033 | -6/Cetus | Destroyed Cetus Guard 23039 | -6/Cetus | Destroyed Cetus Guard 23081 | -6/Cetus | Destroyed 7 combat bots 23112 | -6/Cetus | Lost 4 parts (2n1u1w) 23307 | -6/Cetus | Cetus Manufacturing Module disabled 23347 | -6/Cetus | Discovered new exit (range 15) 23374 | -6/Cetus | Identified exit to Archives 23376 | -6/Cetus | Entered Archives 23513 | -6/Archives | Discovered new exit (range 16) 23820 | -6/Archives | Discovered exit to Factory (range 16) 23844 | -6/Archives | Discovered new exit (range 15) 23877 | -6/Archives | Identified exit to Hub_04(d) 23879 | -6/Archives | Entered Hub_04(d) 24137 | -6/Hub_04(d) | Found Exp. Targeting Computer 25086 | -6/Hub_04(d) | Network Hub disabled 25089 | -6/Hub_04(d) | Entered Factory 25089 | -5/Factory | Evolved 2 slots: Propulsion x1, Utility x1 25091 | -5/Factory | Loaded intel: 26 terminal locations 25149 | -5/Factory | Discovered new exit (range 5) 25154 | -5/Factory | Identified exit to Factory 25389 | -5/Factory | First assault squad dispatched 25480 | -5/Factory | Fabricated M-13 Machinist? 25492 | -5/Factory | Build established: Scavenger-Gunner 25710 | -5/Factory | Sucked down chute 25710 | -5/Factory | Entered Waste 25711 | -5/Waste | Met a frightened Derelict 25725 | -5/Waste | EMP discharged 25749 | -5/Waste | Spotted C-40 Crusher 25755 | -5/Waste | Spotted C-40 Crusher 25780 | -5/Waste | Destroyed C-40 Crusher 25789 | -5/Waste | Found Damper Plating 25795 | -5/Waste | Found Damper Plating 25805 | -5/Waste | Spotted C-40 Crusher 25809 | -5/Waste | Spotted C-40 Crusher 25825 | -5/Waste | EMP discharged 25858 | -5/Waste | Spotted C-40 Crusher 25867 | -5/Waste | Spotted C-40 Crusher 25913 | -5/Waste | Crushed by falling debris 25915 | -5/Waste | Crushed by falling debris 25925 | -5/Waste | EMP discharged 25925 | -5/Waste | System corruption reached 10% 25968 | -5/Waste | Discovered new exit (range 11) 25979 | -5/Waste | Identified exit to Factory 25981 | -5/Waste | Entered Factory 26292 | -5/Factory | Build established: Scavenger-Skirmisher 26668 | -5/Factory | Identified exit to Upper Caves 26719 | -5/Factory | Lost 3 parts (1n1u1w) 26927 | -5/Factory | Lost 10 parts (1p2n4u3w) 26933 | -5/Factory | Core integrity fell below 50% 26961 | -5/Factory | Fabricated Exp. Sensor Array? 27109 | -5/Factory | Build established: Mutant 27287 | -5/Factory | Found Prototype Launcher 27288 | -5/Factory | Identified Tesla Bomb Launcher 27537 | -5/Factory | Crushed by falling debris 27719 | -5/Factory | Core integrity fell below 20% 27722 | -5/Factory | Entered Upper Caves 27953 | -5/Upper Caves | Build established: Scavenger-Mutant 28363 | -5/Upper Caves | Encountered a Warlord checkpoint 28434 | -5/Upper Caves | Discovered new exit (range 9) 28873 | -5/Upper Caves | Attracted the attention of an 0b10 checkpoint 29010 | -5/Upper Caves | Identified exit to Upper Caves 29012 | -5/Upper Caves | Entered another Upper Caves area 29198 | -5/Upper Caves | Build established: Scavenger-Gunner 29327 | -5/Upper Caves | Discovered new exit (range 5) 29995 | -5/Upper Caves | Build established: Trapper-Tank 30063 | -5/Upper Caves | Identified exit to Warlord 30066 | -5/Upper Caves | Entered Warlord 30367 | -5/Warlord | Learned Quarantine stockpile data 30367 | -5/Warlord | Learned Testing trap positions 30460 | -5/Warlord | Build established: Trapper-Mutant 30774 | -5/Warlord | Visited the Vortex Lab 30777 | -5/Warlord | Warlord's base attacked by MAIN.C 30796 | -5/Warlord | Found Prototype Piercing Weapon 30800 | -5/Warlord | Found Prototype Piercing Weapon 30809 | -5/Warlord | Found Prototype Launcher 30932 | -5/Warlord | Found Prototype Special Weapon 30937 | -5/Warlord | Found Prototype Special Weapon 30941 | -5/Warlord | Found Prototype Special Weapon 30945 | -5/Warlord | Found Prototype Special Weapon 30949 | -5/Warlord | Found Prototype Special Weapon 30953 | -5/Warlord | Found Prototype Special Weapon 31123 | -5/Warlord | Met Warlord 31127 | -5/Warlord | Warlord forces counterattacked 31147 | -5/Warlord | Identified Vortex Lance (x2) 31184 | -5/Warlord | Found Prototype Reactor 31193 | -5/Warlord | Found Prototype Processor 31193 | -5/Warlord | Identified Exp. Target Analyzer 31203 | -5/Warlord | Found Prototype Device 31203 | -5/Warlord | Identified Exp. Focal Shield 31414 | -5/Warlord | Opened side exit 31452 | -5/Warlord | Warlord base infiltrated, sounded retreat 31472 | -5/Warlord | Build established: Mutant 31473 | -5/Warlord | Discovered new exit (range 11) 31477 | -5/Warlord | Spotted Executioner 31477 | -5/Warlord | Spotted Executioner 31478 | -5/Warlord | Identified RU-N14's Throwing Claymores v3 (x6) 31481 | -5/Warlord | Destroyed Executioner 31481 | -5/Warlord | Destroyed Executioner 31495 | -5/Warlord | Identified exit to Proximity Caves 31496 | -5/Warlord | Entered Proximity Caves 31496 | -4/Proximity Caves | Accompanied by 1 ally 31510 | -4/Proximity Caves | Destroyed 12 combat bots 31785 | -4/Proximity Caves | Learned 8 Research zone layouts 32113 | -4/Proximity Caves | Identified Vortex Catalyst Activator 32374 | -4/Proximity Caves | Attracted the attention of an 0b10 checkpoint 32496 | -4/Proximity Caves | Discovered exit to Factory (range 4) 32520 | -4/Proximity Caves | Entered Factory 32520 | -4/Factory | Accompanied by 1 ally 32520 | -4/Factory | Evolved 2 slots: Power x1, Utility x1 32521 | -4/Factory | Identified Vortex Chain Reactor 32657 | -4/Factory | Discovered new exit (range 24) 32707 | -4/Factory | Discovered new exit (range 23) 33006 | -4/Factory | Found Quantum Capacitor 33166 | -4/Factory | Identified exit to Upper Caves 33270 | -4/Factory | First assault squad dispatched 33315 | -4/Factory | Entered Upper Caves 33344 | -4/Upper Caves | Spotted B-86 Titan 33348 | -4/Upper Caves | Attracted the attention of an 0b10 checkpoint 33610 | -4/Upper Caves | Discovered new exit (range 23) 33945 | -4/Upper Caves | Identified exit to Upper Caves 33946 | -4/Upper Caves | Entered another Upper Caves area 33983 | -4/Upper Caves | Discovered new exit (range 22) 34012 | -4/Upper Caves | Learned Factory garrison access intel 34012 | -4/Upper Caves | Learned Extension terminal intel 34012 | -4/Upper Caves | Learned Factory security intel 34012 | -4/Upper Caves | Learned Extension stockpile data 34012 | -4/Upper Caves | Learned Research stockpile data 34012 | -4/Upper Caves | Learned 8 Factory zone layouts 34557 | -4/Upper Caves | Discovered new exit (range 24) 34628 | -4/Upper Caves | Build established: Tank 34796 | -4/Upper Caves | Identified exit to Zhirov 35013 | -4/Upper Caves | Learned location of Testing (-2) 35267 | -4/Upper Caves | Entered Zhirov 35267 | -4/Zhirov | Discovered new exit (range 3) 35273 | -4/Zhirov | Identified exit to Proximity Caves 35292 | -4/Zhirov | Met Zhirov 35310 | -4/Zhirov | Learned location of Command (-1) 35321 | -4/Zhirov | Zhirov requested help retrieving the SGEMP Prototype 35338 | -4/Zhirov | Found Alien Artifact 35338 | -4/Zhirov | Identified Integrated Reactor 35338 | -4/Zhirov | Installed Integrated Reactor, increased core energy generation (+10) 35354 | -4/Zhirov | Found Alien Artifact 35467 | -4/Zhirov | Entered Proximity Caves 35468 | -3/Proximity Caves | Identified exit to Research 35560 | -3/Proximity Caves | Spotted B-86 Titan 35702 | -3/Proximity Caves | Attracted the attention of an 0b10 checkpoint 35833 | -3/Proximity Caves | Entered Research 35833 | -3/Research | Evolved 2 slots: Propulsion x1, Utility x1 35834 | -3/Research | Identified exit to Armory 35835 | -3/Research | Identified exit to Quarantine 36025 | -3/Research | Spotted B-86 Titan 36226 | -3/Research | Entered Quarantine 36250 | -3/Quarantine | Spotted Alpha 7 36381 | -3/Quarantine | Found Prototype Device 36381 | -3/Quarantine | Identified Exp. EM Disruption Field 36439 | -3/Quarantine | Found Alien Energy Cannon 36476 | -3/Quarantine | First assault squad dispatched 36505 | -3/Quarantine | Identified Core Cannon 36597 | -3/Quarantine | Destroyed 9 combat bots 36610 | -3/Quarantine | Cryocooling Duct disabled 36625 | -3/Quarantine | Ambient heat levels rising (+20) 36625 | -3/Quarantine | Non-combat units ordered to evacuate 36715 | -3/Quarantine | Destroyed 7 combat bots 36745 | -3/Quarantine | Found Alien Slashing Weapon 36857 | -3/Quarantine | Discovered new exit (range 24) 36915 | -3/Quarantine | Found Alien Impact Weapon 36956 | -3/Quarantine | Found Alien Artifact 37013 | -3/Quarantine | Found Alien Artifact 37013 | -3/Quarantine | Identified Phase Redirector 37049 | -3/Quarantine | Identified exit to Research 37056 | -3/Quarantine | Entered Research 37056 | -2/Research | Warlord forces began assault on 0b10 37056 | -2/Research | Evolved 2 slots: Power x1, Utility x1 37088 | -2/Research | Discovered new exit (range 19) 37122 | -2/Research | Identified exit to Testing 37166 | -2/Research | Research machine network offline 37188 | -2/Research | Met up with Warlord 37235 | -2/Research | Identified Sigix Broadsword 37351 | -2/Research | Spotted B-90 Cyclops 37466 | -2/Research | Borebot progress halted 37479 | -2/Research | Borebot progress halted 37545 | -2/Research | Build established: Mutant 37587 | -2/Research | Spotted Striker 37601 | -2/Research | Destroyed Striker 37682 | -2/Research | Spotted Executioner 37687 | -2/Research | Destroyed Executioner 37692 | -2/Research | Spotted Striker 37695 | -2/Research | Destroyed Striker 37794 | -2/Research | Entered Testing 37795 | -2/Testing | Loaded intel: 13 trap records 37862 | -2/Testing | Found Prototype Energy Gun 37862 | -2/Testing | Identified Hyp. EM Gauss Rifle 37945 | -2/Testing | Identified Subatomic Replicator 37945 | -2/Testing | Used Subatomic Replicator to replicate Prototype Leg 37946 | -2/Testing | Found Prototype Leg 37946 | -2/Testing | Identified Myomer Exoskeleton 38058 | -2/Testing | Fabricated K-01 Serf? 38063 | -2/Testing | Found Prototype Ballistic Gun 38063 | -2/Testing | Identified Hyp. Multirail 38092 | -2/Testing | Garrison activated, responded to threat 38253 | -2/Testing | Found Prototype Protection 38253 | -2/Testing | Identified SHELL Armor 38421 | -2/Testing | Spotted PX-MSNLZTY341 38428 | -2/Testing | Destroyed PX-MSNLZTY341 38443 | -2/Testing | Found Prototype Device 38443 | -2/Testing | Identified Exp. Transmission Jammer 38456 | -2/Testing | Spotted Superbehemoth 38478 | -2/Testing | Identified Core Stripper 38507 | -2/Testing | Scanned by Researcher 38541 | -2/Testing | Superbehemoth self-activated to run performance analysis 38587 | -2/Testing | Destroyed Superbehemoth 38593 | -2/Testing | Found Prototype Device 38593 | -2/Testing | Identified Exp. Force Field 38608 | -2/Testing | Destroyed 7 combat bots 38749 | -2/Testing | Discovered new exit (range 24) 38751 | -2/Testing | Found Prototype Energy Gun 38751 | -2/Testing | Identified Tachyon Dispersion Ray 38785 | -2/Testing | Found Prototype Energy Cannon 38785 | -2/Testing | Identified Imp. Potential Cannon 38820 | -2/Testing | First assault squad dispatched 39012 | -2/Testing | Spotted Fortress 39034 | -2/Testing | Destroyed Fortress 39039 | -2/Testing | Found Exp. Force Field 39047 | -2/Testing | Found Prototype Device 39047 | -2/Testing | Identified Thermal Barrier 39050 | -2/Testing | Found Unknown Device 39050 | -2/Testing | Identified Antimissile System 39055 | -2/Testing | Found Exp. EM Disruption Field 39113 | -2/Testing | Discovered new exit (range 18) 39133 | -2/Testing | Entered Section 7 39258 | -2/Section 7 | Found Alien Artifact 39277 | -2/Section 7 | Spotted S7 Guard 39302 | -2/Section 7 | Destroyed S7 Guard 39325 | -2/Section 7 | Found Alien Artifact 39327 | -2/Section 7 | Identified Navigation Efficiency Matrix 39327 | -2/Section 7 | Installed Navigation Efficiency Matrix, process failed with unexpected side effects 39415 | -2/Section 7 | Found Alien Artifact 39418 | -2/Section 7 | Spotted S7 Guard 39436 | -2/Section 7 | Destroyed S7 Guard 39445 | -2/Section 7 | Found Alien Artifact 39445 | -2/Section 7 | Identified Core Regenerator 39445 | -2/Section 7 | Used Core Regenerator, restored core integrity (+176) 39623 | -2/Section 7 | Spotted B-90 Cyclops 39660 | -2/Section 7 | First assault squad dispatched 39669 | -2/Section 7 | Identified Microwarp Drive 39701 | -2/Section 7 | Spotted B-99 Colossus 39743 | -2/Section 7 | Found Alien Artifact 39743 | -2/Section 7 | Identified Integrated Dissipator 39743 | -2/Section 7 | Installed Integrated Dissipator, increased core heat dissipation (+20) 39745 | -2/Section 7 | Found Integrated Dissipator 39745 | -2/Section 7 | Installed Integrated Dissipator, increased core heat dissipation (+20) 39748 | -2/Section 7 | Found Integrated Dissipator 39748 | -2/Section 7 | Installed Integrated Dissipator, increased core heat dissipation (+20) 39779 | -2/Section 7 | Found Alien Artifact 39779 | -2/Section 7 | Identified LRC Matter Compressor 39779 | -2/Section 7 | Installed LRC Matter Compressor, increased matter storage capacity (+125) 39785 | -2/Section 7 | Found Alien Artifact 39785 | -2/Section 7 | Identified LRC Storage 39785 | -2/Section 7 | Installed LRC Storage, increased inventory capacity (+2) 39788 | -2/Section 7 | Found Alien Artifact 39788 | -2/Section 7 | Identified LRC Armor 39788 | -2/Section 7 | Installed LRC Armor, increased core integrity (+250) 39996 | -2/Section 7 | Found Alien Artifact 39999 | -2/Section 7 | Found Alien Artifact 40047 | -2/Section 7 | Spotted Executioner 40047 | -2/Section 7 | Spotted Executioner 40079 | -2/Section 7 | Spotted S7 Guard 40152 | -2/Section 7 | Found Alien Artifact 40166 | -2/Section 7 | Identified Transdimensional Reconstructor (x3) 40166 | -2/Section 7 | Warped through subspace 40228 | -2/Section 7 | Discovered new exit (range 23) 40264 | -2/Section 7 | Identified Core Physics Calibrator 40264 | -2/Section 7 | Identified Spacefold Activator 40268 | -2/Section 7 | Entered Access 40268 | -1/Access | Evolved 2 slots: Power x1, Utility x1 40518 | -1/Access | Spotted B-99 Colossus 40560 | -1/Access | Build established: Generator-Mutant 40972 | -1/Access | Discovered new exit (range 23) 41059 | -1/Access | Entered Command 41445 | -1/Command | Spotted Combat Programmer 41450 | -1/Command | Spotted Combat Programmer 41488 | -1/Command | Destroyed Combat Programmer 41497 | -1/Command | Spotted M Guard 41497 | -1/Command | Spotted M Guard 41513 | -1/Command | Destroyed Combat Programmer 41522 | -1/Command | Found Prototype Energy Cannon 41528 | -1/Command | Identified EMDS 41566 | -1/Command | Destroyed M Guard 41574 | -1/Command | Destroyed M Guard 41574 | -1/Command | All MAIN.C guards destroyed 41580 | -1/Command | System corruption reached 10% 41835 | -1/Command | First assault squad dispatched 42573 | -1/Command | Spotted B-99 Colossus 42714 | -1/Command | Spotted Alpha 7 42714 | -1/Command | Spotted Striker 42714 | -1/Command | Spotted Executioner 42714 | -1/Command | Spotted Executioner 42714 | -1/Command | Spotted B-99 Colossus 42714 | -1/Command | Spotted B-99 Colossus 42714 | -1/Command | Spotted Executioner 42714 | -1/Command | Spotted Executioner 42717 | -1/Command | Spotted Alpha 7 42717 | -1/Command | Spotted Striker 42718 | -1/Command | Discovered new exit (range 16) 42783 | -1/Command | Disengaged cave seal 42783 | -1/Command | Derelicts emerged from the dark tunnel 42783 | -1/Command | Welcomed Warlord to Command 42789 | -1/Command | Lost 4 parts (2p1n1u) 43042 | -1/Command | Warlord commented on Warlord statues 43452 | -1/Command | Met MAIN.C 43453 | -1/Command | 0b10 Conduit disabled 43461 | -1/Command | Warlord shut down involuntarily 43467 | -1/Command | Destroyed MAIN.C Shell 43468 | -1/Command | MAIN.C activated Command garrisons 43601 | -1/Command | Core integrity fell below 50% 43603 | -1/Command | System corruption reached 30% 43607 | -1/Command | Core integrity fell below 20% 43615 | -1/Command | Destroyed by X-87 Electro with Compact HERF Cannon Last Messages --------------- 43609_ Kicked S-43 Plague. 43610_ Kicked S-43 Plague out of the way. 43610_ Penetrated by Slug. 43610_ C-30 ARC bursts open, deploying its payload. 43610_ H-88 Terminator unfolds itself. 43610_ Slug penetrates Wall. 43610_ Penetrated by Slug. 43611_ Acquired 36 matter. 43612_ Slug penetrates Wall. 43613_ Penetrated by Slug. 43613_ Slug penetrates Wall. 43613_ Penetrated by Slug. 43613_ Slug penetrates S-43 Plague. 43613_ Slug penetrates L-61 Swordsman. 43613_ Slug penetrates X-87 Electro. 43613_ C-57 Dissector destroyed. 43614_ Surveybot 24 Chip destroyed. 43614_ Myomer Exoskeleton destroyed. 43615_ E-15 Imp destroyed. 43615_ Acquired 40 matter. Map ----- +----------------------------------------------------+ | ?????????????????????????????????????????????????? | | ?????????????????????????????????????????????????? | | ?????????????????????????????????????????????????? | | ?????????????????????????????????????????????????? | | ?????????????????????????????????????????????????? | | ?????????????????????????????????????????????????? | | ??????????????????????????????????????????######## | | ?????????????????????????????????????????+ | | ??????????????????????????????????????????######## | | ?????????????????????????????????????????????????? | | ?????????????????????????????????????????????????? | | ?????????????????????????##??????????????????????? | | ????????????????????????? [??????????????????????? | | ????????????????????????? ????????????########### | | ????????????????????????? ????????????# % | | ????????????????????????? [????######### %% | | ????????????????????????? ?#"##7# # # # | | ?????????????????#????###/#### """"" | | ?????????????????# ???+ s !+ K " " | | ?????????????????# ???# !%* %+= ^ "